Cogmind - Beta 16 @@@ ROGUE MODE // 2025.10.23 @ 18:02:30 Player: szymekc Result: Establishing 0b11! Performance ------------- Evolutions (9) 4500 Regions Visited (36) 7200 Robots Destroyed (784) 3920 Value Destroyed (40290) 40290 Prototype IDs (380) 7600 Alien Tech Used (8) 1600 Bonus (65419) 65419 TOTAL SCORE: 130529 Bonus ------- Triggered High Security 500 High Alert Combat Kills 11238 Follower Combat Kills 1236 Destroyed Unchained 1000 Entered Garrisons 200 Met Data Miner 300 Destroyed Z-Imprinter 1000 Triggered Deep Caves Wall 500 Exposed GOLEM Chamber 500 Acquired ECA 300 Met Zhirov 300 Met Warlord at Base 500 MAIN.C Attacked Warlord 500 Warlord Defense Kills 1968 Met Warlord at Research 2000 Recovered Sigix Corpse 2000 Destroyed MAIN.C Guards 500 Met MAIN.C 5000 Destroyed MAIN.C Shell 5000 Destroyed MAIN.C 10000 Met Warlord at Command 2000 Met Architect 300 Destroyed A8 300 Destroyed A6 400 Destroyed A5 500 Destroyed A4 700 Destroyed A3 800 Destroyed A2 1000 Destroyed Architect 15000 Win 3000 Friendly Fire -3123 Cogmind --------- Core Integrity 1141/1600 Matter 266/300 Energy 599/610 System Corruption 5% Temperature Cool (4) Movement Walking (102) Location 0b11 Command Parts ------- > --- POWER (3) -------- Improved Quantum Reactor Zero-point Reactor Concept Zero-point Core > --- PROPULSION (7) --- Experimental Biometal Leg Experimental Biometal Leg Experimental Biometal Leg Experimental Armored Exoskeleton > --- UTILITY (13) ----- Concept Phasing Heat Sink Concept Thermoelectric Network Concept Antigrav Storage Unit Experimental Optical Array Concept Weapon Articulator Experimental Core Analyzer Quantum Capacitor Experimental Reaction Control System Advanced Phase Shifter Heavy Regenerative Plating Advanced Force Field > --- WEAPON (3) ------- Concept Plasma Driver Sigix Broadsword > --- INVENTORY (25) --- Vortex Chain Reactor High-density Centrium Leg Concept Chromion Battery (800) Concept NT7 Matterbank (750) Experimental Terrain Scan Processor Experimental Core Analyzer Experimental Weapon Cycler Graphene Brace Experimental EM Shield Improved Dynamic Insulation System Concept Impact Drone Bay (3/6) Transdimensional Reconstructor High-powered Transdimensional Reconstructor HERF Cannon Enhanced Nova Cannon Enhanced Nova Cannon Concept Miniperforator Concept Helical Railcannon Concept Heavy Railcannon Concept EMP Blanket Launcher Concept Tactical Fusion Warhead Sigix Corpse Peak State ------------ > --- POWER ------------ Concept Zero-point Core Concept Zero-point Core Concept Zero-point Core > --- PROPULSION ------- Heavy Shield Leg Experimental VSS Leg Experimental Armored Exoskeleton > --- UTILITY ---------- Concept Phasing Heat Sink Concept Thermoelectric Network Concept Antigrav Storage Unit Concept Weapon Articulator Experimental Core Analyzer Quantum Capacitor Concept Cloak Mesh Concept Cloak Mesh Centrium Heavy Armor Plating Concept Hardlight Director Concept Network Penetrator > --- WEAPON ----------- Concept Plasma Driver Sigix Broadsword > --- INVENTORY -------- Improved Quantum Reactor Centrium Leg Concept Thermoelectric Network Concept Chromion Battery Concept NT7 Matterbank Experimental Optical Array Experimental Reaction Control System Experimental Reaction Control System Advanced Phase Shifter Experimental EM Shield Advanced Force Field Experimental Force Field Concept Impact Drone Bay Concept Impact Drone Bay Transdimensional Reconstructor Transdimensional Reconstructor HERF Cannon Concept Plasma Driver 6S-H0T's Six Shooter Concept Miniperforator Concept Helical Railcannon Concept Heavy Railcannon Concept EMP Blanket Launcher Concept Tactical Fusion Warhead [Rating: 314] Favorites ----------- Power Concept Zero-point Core Engine Light Ion Engine Power Core Concept Zero-point Core Reactor Assembled Flux Generator Propulsion Enhanced Armored Leg Treads Light Treads Leg Enhanced Armored Leg Wheel Armored Wheel Flight Unit Improved Cesium-ion Thruster Utility Huge Storage Unit Device Experimental Sensor Array Storage Huge Storage Unit Processor Advanced Signal Interpreter Hackware Concept Network Penetrator Protection Assembled Alloy Armor Weapon Assembled Focal Cannon Energy Gun Gatling Laser Energy Cannon Assembled Focal Cannon Ballistic Gun Enhanced Autogun Ballistic Cannon Improved Light Cannon Launcher Compact Tesla Bomb Launcher Special Weapon Mining Laser Impact Weapon Power Maul Slashing Weapon Sigix Broadsword Piercing Weapon Spear Special Melee Weapon Datajack Build | -11 -10 -10 -10 -9 -8 -8 -8 -7 -7 -7 -7 -6 -6 -6 -6 -6 -6 -5 -5 -5 -5 -5 -4 -4 -4 -4 -4 -3 -3 -3 -3 -2 -2 -1 -1 -1 ------- Run | Yrd Mat Min Exi Min Mat Gar Mat Fac Low Low Dat Pro Fac Low Low Zio Dee Pro Fac Upp Upp Zhi Pro Fac Upp Upp War Pro Res Qua Frg Res Tes Acc Com Ac0 Slots Evolved 18 | . . . . . 4 . . 2 . . . . 2 . . . . . 2 . . . . 2 . . . . 2 . . 2 . 2 . . Power 1 | . . . . . . . . 1 . . . . . . . . . . . . . . . . . . . . . . . . . . . . Propulsion 5 | . . . . . 2 . . . . . . . 2 . . . . . . . . . . . . . . . 1 . . . . . . . Utility 11 | . . . . . 2 . . 1 . . . . . . . . . . 2 . . . . 2 . . . . 1 . . 1 . 2 . . Weapon 1 | . . . . . . . . . . . . . . . . . . . . . . . . . . . . . . . . 1 . . . . Parts Attached 369 | 7 11 4 . 3 32 8 12 61 3 . . 2 19 1 1 1 25 3 20 1 2 4 1 6 1 2 19 1 12 14 44 11 7 1 24 6 Power 40 | 1 . 2 . . 4 1 . 10 1 . . . 4 . . . 2 . 1 . . 1 . . . . 1 . . 3 4 2 1 . 2 . Engine 11 | 1 . 2 . . 3 . . 4 . . . . 1 . . . . . . . . . . . . . . . . . . . . . . . Core 16 | . . . . . 1 1 . 6 1 . . . 3 . . . 1 . . . . . . . . . . . . . 3 . . . . . Reactor 13 | . . . . . . . . . . . . . . . . . 1 . 1 . . 1 . . . . 1 . . 3 1 2 1 . 2 . Propulsion 89 | 2 3 . . 1 16 4 4 20 . . . . 4 . . . 4 . 6 . . 1 . . 1 1 3 . 2 2 5 4 . . 5 1 Treads 36 | 2 3 . . 1 14 4 4 8 . . . . . . . . . . . . . . . . . . . . . . . . . . . . Leg 35 | . . . . . . . . . . . . . . . . . 4 . 6 . . 1 . . 1 1 3 . 2 2 5 4 . . 5 1 Wheel 8 | . . . . . 1 . . 7 . . . . . . . . . . . . . . . . . . . . . . . . . . . . Hover . | . . . . . . . . . . . . . . . . . . . . . . . . . . . . . . . . . . . . . Flight 10 | . . . . . 1 . . 5 . . . . 4 . . . . . . . . . . . . . . . . . . . . . . . Utility 177 | 2 3 1 . 1 5 . 4 19 2 . . 2 7 . . 1 18 3 12 1 2 2 1 6 . 1 15 1 8 7 25 5 4 1 13 5 Device 107 | 2 1 1 . . 3 . 4 7 1 . . 1 1 . . 1 7 3 7 . 1 1 . 2 . 1 10 1 4 5 20 4 4 1 10 4 Storage 16 | . 1 . . . . . . 1 . . . . 1 . . . 3 . 1 . . 1 . 1 . . 2 . 1 . 3 . . . 1 . Processor 19 | . . . . . 2 . . 4 . . . 1 5 . . . . . . . . . . 2 . . 1 . . 1 1 . . . 1 1 Hackware 9 | . . . . . . . . 1 . . . . . . . . . . 2 . 1 . 1 . . . . . 3 . . 1 . . . . Protection 26 | . 1 . . 1 . . . 6 1 . . . . . . . 8 . 2 1 . . . 1 . . 2 . . 1 1 . . . 1 . Artifact . | . . . . . . . . . . . . . . . . . . . . . . . . . . . . . . . . . . . . . Weapon 63 | 2 5 1 . 1 7 3 4 12 . . . . 4 1 1 . 1 . 1 . . . . . . . . . 2 2 10 . 2 . 4 . Energy Gun 9 | . . . . . . . . 7 . . . . . . . . . . . . . . . . . . . . . . 1 . 1 . . . Energy Cannon 13 | . . . . . 2 . 1 2 . . . . 1 . . . . . . . . . . . . . . . 1 . 3 . . . 3 . Ballistic Gun 9 | 2 . . . . 1 1 . 1 . . . . 2 . . . 1 . . . . . . . . . . . . . . . 1 . . . Ballistic Cannon 11 | . 2 1 . . 2 . 1 . . . . . . . . . . . . . . . . . . . . . . . 4 . . . 1 . Launcher 13 | . 1 . . 1 1 1 2 1 . . . . 1 . 1 . . . 1 . . . . . . . . . 1 . 2 . . . . . Special Weapon 1 | . 1 . . . . . . . . . . . . . . . . . . . . . . . . . . . . . . . . . . . Impact Weapon 2 | . . . . . . 1 . . . . . . . . . . . . . . . . . . . . . . . 1 . . . . . . Slashing Weapon 3 | . . . . . 1 . . . . . . . . 1 . . . . . . . . . . . . . . . 1 . . . . . . Piercing Weapon 1 | . . . . . . . . 1 . . . . . . . . . . . . . . . . . . . . . . . . . . . . Special Melee Weapon 1 | . 1 . . . . . . . . . . . . . . . . . . . . . . . . . . . . . . . . . . . Unidentified Prototypes 67 | . . 1 . . 3 . . 2 . 1 . . . . . 1 12 . 2 . . 2 . 1 . . 6 . 3 7 18 2 5 . . 1 Corrupted Parts 3 | . . . . . . . . 1 . . . . . . . . . . 1 . . . . . . . . . . . . . . . 1 . System Corruption 12 | . . . . . . . . 2 . . . . . . . . . . 5 . . . . . . . . . . . . . . . 5 . Parts Lost 68 | . . . . 4 4 1 1 30 . . . . 3 . . . 7 1 7 . 1 . . . . . . . . . 3 . . 1 5 . Power 13 | . . . . . 1 . . 6 . . . . 2 . . . 2 . 1 . . . . . . . . . . . . . . . 1 . Propulsion 20 | . . . . 2 2 1 1 11 . . . . . . . . . . 2 . . . . . . . . . . . . . . . 1 . Utility 26 | . . . . 2 1 . . 6 . . . . 1 . . . 4 1 4 . 1 . . . . . . . . . 3 . . 1 2 . Weapon 9 | . . . . . . . . 7 . . . . . . . . 1 . . . . . . . . . . . . . . . . . 1 . Highest Loss Streak 7 | . . . . 4 2 1 1 7 . . . . 1 . . . 7 1 3 . 1 . . . . . . . . . 1 . . 1 3 . To Critical Strikes 1 | . . . . . . 1 . . . . . . . . . . . . . . . . . . . . . . . . . . . . . . Average Backups 18 | 2 12 14 14 14 14 14 13 18 4 5 5 5 8 9 10 9 10 20 21 20 20 21 21 20 21 21 22 22 21 21 21 22 23 21 22 21 Power . | . 1 1 3 4 2 1 1 . 1 1 1 1 . 1 1 1 1 2 1 1 1 . . . . . . 1 1 1 . . 1 1 1 1 Propulsion 1 | . 1 2 2 1 1 4 . 4 2 2 2 2 4 3 3 2 1 . . 3 4 3 3 2 1 . . 1 . 1 . . . . . 1 Utility 10 | . 3 4 5 4 3 4 6 8 1 2 2 2 1 2 3 3 7 15 15 11 11 13 13 11 14 16 16 16 15 14 13 12 13 11 10 9 Weapon 4 | 1 6 5 3 3 5 4 5 4 . . . . 1 3 3 3 1 3 3 4 4 4 4 5 5 4 3 3 3 3 5 6 6 7 7 8 Tool/Special . | . . . . . . . . . . . . . . . . . . . . . . . . . . . . . . . . . . . . . Unused Backups 76 | . 2 1 1 . 7 6 3 7 . . . . 6 1 2 2 4 . 3 . . 1 . 1 1 . 2 . 1 1 7 4 1 . 2 10 Power 9 | . . . . . 3 . 1 . . . . . . . . . 1 . . . . . . . . . . . . . . 2 . . 1 1 Propulsion 15 | . . . . . . 5 . 3 . . . . 4 . . . 2 . . . . . . . . . . . . . . . . . . 1 Utility 32 | . . . . . 1 1 1 3 . . . . 2 . 1 2 1 . 2 . . 1 . 1 1 . . . . . 6 2 1 . 1 5 Weapon 18 | . 2 1 1 . 3 . 1 1 . . . . . 1 1 . . . 1 . . . . . . . 2 . 1 1 . . . . . 2 Tool/Special 2 | . . . . . . . . . . . . . . . . . . . . . . . . . . . . . . . 1 . . . . 1 Average Slot Usage (%) 88 | . 100 100 100 95 87 97 97 93 82 83 78 78 79 93 93 93 84 92 88 92 93 85 86 92 95 95 91 95 92 89 78 70 72 72 74 76 Engine 1 | . 14 14 14 14 3 . . 1 7 7 7 7 6 6 6 6 2 . . . . . . . . . . . . . . . . . . . Core 4 | . . . . . 5 9 9 12 . . . . 1 12 12 12 4 . . . . . . . . . . . . . 5 12 12 11 9 5 Reactor 5 | . . . . . . . . . . . . . . . . . 7 12 10 11 11 11 11 10 10 10 10 10 9 8 4 . . . 1 4 Treads 6 | . 28 28 28 28 30 35 34 13 . . . . . . . . . . . . . . . . . . . . . . . . . . . . Leg 16 | . . . . . . . . . . . . . . . . . 15 37 32 33 33 33 32 30 30 30 29 30 31 31 19 12 12 11 11 15 Wheel 1 | . . . . . . . . 14 . . . . . . . . . . . . . . . . . . . . . . . . . . . . Flight 2 | . . . . . . . . 1 30 29 28 28 32 31 31 31 15 . . . . . . . . . . . . . . . . . . . Device 17 | . 12 . . . 17 18 18 14 13 14 14 10 8 12 12 12 8 11 14 15 17 18 15 20 20 20 13 19 18 17 26 25 26 25 25 26 Storage 8 | . 12 14 14 14 9 9 9 6 . . . . 5 6 6 6 5 12 11 11 11 10 11 9 10 10 10 10 9 9 4 4 4 3 4 3 Processor 6 | . . . . . 6 9 8 6 7 7 7 11 9 12 12 12 8 6 5 5 5 5 5 6 10 10 10 10 9 9 4 4 4 3 4 7 Protection 3 | . 2 14 14 9 . . . 5 7 7 7 7 4 . . . 3 . . 4 2 . . 5 5 5 7 5 4 4 4 . . 3 3 3 Energy Cannon 5 | . . . . . 6 . . 4 . . . . . . . . 3 12 10 11 11 6 9 10 10 10 9 10 9 7 3 4 3 3 3 3 Ballistic Gun 1 | . 12 . 13 14 . 12 13 . . . . . 1 . . . 2 . . . . . . . . . . . . . . . . . . . Ballistic Cannon 1 | . 13 28 14 8 5 2 1 . . . . . . . . . . . . . . . . . . . . . . . . . . . . . Peak Build Rating 314 | 9 12 19 14 14 34 39 41 52 52 52 52 56 85 85 84 84 134 133 150 151 148 150 150 174 169 169 181 181 198 217 287 300 297 313 314 299 Average Rating 144 | 7 9 13 13 13 26 34 39 45 50 52 52 50 66 83 83 83 103 132 144 144 144 141 146 166 168 168 170 180 193 202 239 295 292 311 300 293 On Entrance 121 | . 9 12 14 14 12 34 39 39 39 52 52 52 53 85 83 83 84 133 131 149 141 130 150 150 169 166 169 178 181 198 214 287 291 297 310 286 Avg Prop Armor Cover (%) 9 | . . . . . 23 . . 11 . . . . 3 . . . . . . . . . . . 3 . . . . . . . . . . . Naked Turns . | . . . . . . . . . . . . . . . . . . . . . . . . . . . . . . . . . . . . . Heaviest Build 208 | 11 38 38 38 36 42 43 49 138 23 23 23 23 37 36 35 35 164 167 183 192 187 168 168 208 189 191 206 185 203 198 188 113 115 133 168 166 Greatest Support 206 | 40 40 40 40 40 80 90 90 90 24 24 24 24 39 39 39 39 168 168 168 140 140 140 140 160 140 140 160 160 203 206 206 186 186 186 186 184 Greatest Overweight (x) 47 | . 1 . . . 11 . . 13 . . . . 1 . . . 47 . 1 1 1 1 1 1 1 1 1 1 1 1 1 . . . . . Average Overweight (x) . | . . . . . . . . 2 . . . . . . . . . . . 1 1 1 1 . 1 1 1 1 . . . . . . . . Largest Inventory Capacity 25 | 5 15 15 15 15 15 15 15 25 5 5 5 5 10 10 10 10 25 25 25 25 25 25 25 25 25 25 25 25 25 25 25 25 25 25 25 25 Average Capacity 21 | 5 14 15 15 15 15 15 15 21 5 5 5 5 9 10 10 10 15 25 25 25 25 25 25 23 25 25 25 25 25 25 25 25 25 25 25 25 Most Carried 25 | 4 15 15 15 15 15 15 15 25 5 5 5 5 10 10 10 10 25 25 25 25 25 25 25 25 25 25 25 25 25 25 25 25 25 23 25 25 Average Carried 20 | 2 12 14 14 13 14 14 14 20 4 5 5 4 8 9 9 9 11 24 24 23 24 24 24 22 24 24 24 25 24 24 24 24 24 22 23 24 Final Capacity 25 | 5 15 15 15 15 15 15 15 5 5 5 5 5 10 10 10 10 25 25 25 25 25 25 25 25 25 25 25 25 25 25 25 25 25 25 25 25 Final Carried 25 | 4 15 14 15 12 15 15 15 5 5 5 5 5 9 10 10 10 25 25 25 23 25 25 25 25 25 25 25 25 25 23 25 25 25 23 23 24 Class Distribution -------------------- 29% | Mutant 23% | Scavenger-Mutant 13% | Skirmisher 10% | Golem 6% | Sprinter 4% | Hacker-Assassin 3% | Hacker-Mutant Dominant Class ---------------- Mutant | -10/Materials Mutant | -10/Mines Trapper-Mutant | -10/Exiles Trapper-Mutant | -9/Mines Scavenger-Mutant | -8/Materials Scavenger-Mutant | -8/Garrison Mutant | -8/Materials Scavenger-Mutant | -7/Factory Sprinter | -7/Lower Caves Sprinter | -7/Lower Caves Sprinter | -7/Data Miner Sprinter | -6/Proximity Caves Sprinter | -6/Factory Sprinter | -6/Lower Caves Sprinter | -6/Lower Caves Sprinter | -6/Zion Sprinter | -6/Deep Caves Mutant | -5/Proximity Caves Golem | -5/Factory Mutant | -5/Upper Caves Mutant | -5/Upper Caves Golem | -5/Zhirov Golem | -4/Proximity Caves Skirmisher | -4/Factory Skirmisher | -4/Upper Caves Skirmisher | -4/Upper Caves Mutant | -4/Warlord Skirmisher | -3/Proximity Caves Skirmisher | -3/Research Skirmisher | -3/Quarantine Mutant | -3/Protoforge Hacker-Assassin | -2/Research Hacker-Assassin | -2/Testing Hacker-Mutant | -1/Access Mutant | -1/Command Scavenger-Mutant | -1/Access_0 Resources | -11 -10 -10 -10 -9 -8 -8 -8 -7 -7 -7 -7 -6 -6 -6 -6 -6 -6 -5 -5 -5 -5 -5 -4 -4 -4 -4 -4 -3 -3 -3 -3 -2 -2 -1 -1 -1 ----------- Run | Yrd Mat Min Exi Min Mat Gar Mat Fac Low Low Dat Pro Fac Low Low Zio Dee Pro Fac Upp Upp Zhi Pro Fac Upp Upp War Pro Res Qua Frg Res Tes Acc Com Ac0 Matter Collected 18192 | 357 509 340 . 158 893 962 1036 2497 97 16 . 20 277 136 178 50 605 115 577 293 232 . 313 230 288 132 406 50 1013 390 3656 284 280 25 1507 270 Remotely 1083 | . . . . . . . . 361 . . . . . . . . . . . . . . . . . . . . . . 722 . . . . . Salvage Created 38716 | 273 453 205 . 68 1633 922 1381 4648 96 46 . 93 700 126 170 . 776 258 3086 914 1088 . 473 409 661 354 963 78 2243 1158 5949 1051 1150 117 4008 3166 Parts 1780 | 29 22 17 . 2 87 74 85 229 5 . . 2 23 1 9 . 34 12 125 24 46 . 24 27 24 9 42 3 118 26 270 40 64 3 151 153 Haulers Intercepted 31 | . 2 . . . 6 . 5 6 . . . . 1 . . . . . 5 . . . . 1 . . . . 2 . . 2 . 1 . . Recyclers Shooed 10 | . 2 . . 1 . . 2 . . . . . 2 . . . . . 3 . . . . . . . . . . . . . . . . . Parts Field Recycled . | . . . . . . . . . . . . . . . . . . . . . . . . . . . . . . . . . . . . . Retrieved Matter . | . . . . . . . . . . . . . . . . . . . . . . . . . . . . . . . . . . . . . Parts Self-Destructed 171 | . . . . . . . . . 1 . . 17 . . 3 . . 14 . 29 49 . 24 . 23 8 . 3 . . . . . . . . Prevented 2 | . . . . . . . . . . . . . . . 2 . . . . . . . . . . . . . . . . . . . . . Parts Restored 4 | . . . . . . . . . . . . . . . . . . . . . . . . . . . . . . . 4 . . . . . Faulty 4 | . . . . . . . . . . . . . . . . . . . . . . . . . . . . . . . 4 . . . . . Kills | -11 -10 -10 -10 -9 -8 -8 -8 -7 -7 -7 -7 -6 -6 -6 -6 -6 -6 -5 -5 -5 -5 -5 -4 -4 -4 -4 -4 -3 -3 -3 -3 -2 -2 -1 -1 -1 ------- Run | Yrd Mat Min Exi Min Mat Gar Mat Fac Low Low Dat Pro Fac Low Low Zio Dee Pro Fac Upp Upp Zhi Pro Fac Upp Upp War Pro Res Qua Frg Res Tes Acc Com Ac0 Combat Hostiles Destroyed 642 | . 10 8 . 14 32 35 28 115 . . . 3 5 . 8 . 39 7 35 14 17 . 10 8 11 4 16 2 30 8 84 13 15 . 37 34 Melee 11 | . . . . . . . . . . . . 1 3 . 1 . 5 . . . . . . . . . . . . . 1 . . . . . Guns 60 | . 2 . . . . 15 17 25 . . . . . . . . 1 . . . . . . . . . . . . . . . . . . . Cannons 353 | . 5 8 . . 26 17 3 16 . . . . . . . . . 7 19 14 15 . 10 8 11 4 16 2 30 7 62 12 14 . 29 18 AOE 163 | . 3 . . 14 5 3 8 69 . . . . 2 . 7 . 31 . 16 . 2 . . . . . . . . . 3 . . . . . Classes Destroyed 38 | 3 4 1 . 1 5 1 1 2 1 1 . . 1 . 1 . 3 . . . . . . . . . 1 . . 1 6 2 . . 3 . Worker 42 | 2 1 1 . . . . 3 19 . . . . 4 . . . . . 5 . . . . . . . . . 2 . . . 1 1 3 . Builder 35 | . . 1 . 1 2 . 1 14 . . . . 3 . . . . . 10 . . . . . . . . . 1 1 . . 1 . . . Tunneler 13 | 9 . . . . 2 . . . . . . . 1 . . . . . 1 . . . . . . . . . . . . . . . . . Hauler 31 | . 2 . . . 6 . 5 6 . . . . 1 . . . . . 5 . . . . 1 . . . . 2 . . 2 . 1 . . Recycler 28 | 1 2 1 . . 1 . 2 13 . . . . 2 . . . . . 4 . . . . . . . . . . . . . . . 2 . Carrier 1 | . . . . . . . . . . . . . . . . . . . . . . . . . . . . . . . 1 . . . . . Minesweeper 1 | . . . . . . . . . . . . . . . 1 . . . . . . . . . . . . . . . . . . . . . Mechanic 11 | . . . . . . . . 5 . . . . 1 . . . . . 1 . . . . . . . . . . 1 2 . 1 . . . Operator 3 | . . . . . 1 . . . . . . . . . . . . . 1 . . . . . . . . . . . . 1 . . . . Drone 10 | . . . . . . . . . . . . . 1 . . . . . . . . . . . . . . 2 . . 6 . . . . 1 Watcher 19 | . 2 . . . 1 1 . 1 . . . . 2 . . . . . 4 . . . . . . . . . 1 1 . 1 2 . 3 . Swarmer 124 | . 3 3 . . 4 17 6 25 . . . 2 3 . 3 . . 4 4 . 5 . 6 5 4 . 3 . 8 . . 4 5 . 10 . Saboteur 2 | . . . . . . . . . . . . . . . . . . . . . . . . . . . . . . . 2 . . . . . Grunt 168 | . 7 5 . . 15 9 15 38 . . . 1 . . 4 . . 1 7 9 10 . 1 . 4 . 4 . 11 4 14 . 1 . 8 . Brawler 19 | . . . . . 1 1 . 12 . . . . . . . . . . . 1 . . . . . . 1 . . 1 2 . . . . . Duelist 14 | . . . . . . . . 8 . . . . . . 1 . . . . 1 1 . . . . . . . . . 3 . . . . . Protector 14 | . . . . . . . 1 8 . . . . . . . . . . 1 . . . . . . . 3 . . . 1 . . . . . Researcher 4 | . . . . . . . . . . 1 . . . . . . . . . . . . . . . . . . . . 2 . 1 . . . Sentry 51 | . . . . . 8 4 4 7 . . . . . . . . . . 6 1 . . 1 1 1 . . . 2 . 10 2 . . 4 . Demolisher 2 | . . . . . . . . . . . . . . . . . . . . . . . . . . . . . . . . 2 . . . . Specialist 4 | . . . . . . . . . . . . . . . . . . . . . . . . . . . 4 . . . . . . . . . Hunter 36 | . . . . . 3 3 1 7 . . . . . . . . . . 3 2 1 . 2 . . 4 . . . . 6 2 2 . . . Programmer 74 | . . . . . . 1 . 10 . . . . 1 . . . . 2 13 . . . . 2 2 . 1 . 9 2 19 2 6 . 4 . Heavy 4 | . . . . . 1 . 1 . . . . . . . . . . . 1 . . . . . . . . . . . . . . . 1 . Behemoth 2 | . . . . . . . . . . . . . . . . . . . . . . . . . . . . . . . . . . . 2 . M Guard 2 | . . . . . . . . . . . . . . . . . . . . . . . . . . . . . . . . . . . 2 . Enhanced Grunt 16 | . . . . . . . . . . . . . . . . . . . . . . . . . . . . . . . . . . . . 16 Enhanced Sentry 4 | . . . . . . . . . . . . . . . . . . . . . . . . . . . . . . . . . . . . 4 Enhanced Hunter 7 | . . . . . . . . . . . . . . . . . . . . . . . . . . . . . . . . . . . . 7 Hotshot 4 | . . . . . . . . . . . . . . . . . . . . . . . . . . . . . . . 4 . . . . . Decapitator 9 | . . . . . . . . . . . . . . . . . . . . . . . . . . . . . . . 9 . . . . . Immortal 2 | . . . . . . . . . . . . . . . . . . . . . . . . . . . . . . . 2 . . . . . Combat Programmer 2 | . . . . . . . . . . . . . . . . . . . . . . . . . . . . . . . . . . . 2 . Striker 1 | . . . . . . . . . . . . . . . . . . . . . . . . . . . . . . . . 1 . . . . Alpha 7 2 | . . . . . . . . . . . . . . . . . . . . . . . . . . . . . . . 2 . . . . . Fortress 1 | . . . . . . . . . . . . . . . . . . . . . . . . . . . . . . 1 . . . . . . V-Series 4 | . . . . . . . . . . . . . . . . . . . . . . . . . . . . . . . 4 . . . . . Z-Technician 4 | . . . . . . . . . . . . . . . . . 4 . . . . . . . . . . . . . . . . . . . Z-Light 6 | . . . . . . . . . . . . . . . . . 6 . . . . . . . . . . . . . . . . . . . Decomposer 1 | . . . . . . . . . . . . . . 1 . . . . . . . . . . . . . . . . . . . . . . Packrat 3 | . . . . . . . . . . . . . . . . . . . . . 1 . . . 1 . . 1 . . . . . . . . Samaritan 3 | . . . . . . . . . 2 . . . . . . . . . . . . . . . . 1 . . . . . . . . . . Tinkerer 1 | . . . . . . . . . . . . . . . . . . . . . . . . . . . . . . . 1 . . . . . Assembler 1 | . . . . . . . . . . . . . . . . . 1 . . . . . . . . . . . . . . . . . . . Assembled 45 | . . . . 14 . . . . . . . . . . . . 31 . . . . . . . . . . . . . . . . . . . Golem 2 | . . . . . . . . . . . . . . . . . 2 . . . . . . . . . . . . . . . . . . . Thug 1 | . . . . . . . . . . . . . . . . . . . . . . . . . . . . . . . . . . . 1 . Guerrilla 1 | . . . . . . 1 . . . . . . . . . . . . . . . . . . . . . . . . . . . . . . Fireman 1 | . . . . . . . . . . . . . . . . . . . . . . . . . . . . . . . . . . . 1 . Mutant 1 | . . . . . . . . . . . . . . . . . . . . . . . . . . . . . . . . . . . 1 . Best Kill Streak 32 | 5 4 4 . 10 8 10 11 26 . . . 2 5 . 7 . 32 4 13 7 4 . 6 6 4 2 3 1 8 5 12 6 8 1 12 5 Combat Bots Only 31 | . 3 3 . 10 5 10 6 10 . . . 2 3 . 7 . 31 4 10 7 4 . 6 5 4 2 3 1 5 4 10 6 8 . 12 5 Max Kills in Single Turn 20 | 2 2 2 . 5 3 2 4 6 1 1 . 1 3 1 2 . 20 1 5 2 2 . 1 1 1 1 1 1 2 2 3 1 2 1 2 1 Gunslinging . | . . . . . . . . . . . . . . . . . . . . . . . . . . . . . . . . . . . . . Exploded 20 | . 2 . . 5 3 2 4 3 . . . . 2 . 2 . 20 . 4 . 2 . . . . . . . . . 2 . . . . . Melee 1 | . . . . . . . . . . . . 1 1 . 1 . 1 . . . . . . . . . . . . . 1 . . . . . Uniques/NPCs Destroyed 11 | . . . . . . . . . . . . . . . . . 1 . . . . . . . . . . . . . . . 1 . 2 7 Z-Imprinter (-6/Deep Caves) 6S-H0T (-2/Testing) MAIN.C Shell (-1/Command) MAIN.C (-1/Command) A8 (-1/Access_0) A6 (-1/Access_0) A5 (-1/Access_0) A2 (-1/Access_0) A4 (-1/Access_0) Architect (-1/Access_0) A3 (-1/Access_0) Combat | -11 -10 -10 -10 -9 -8 -8 -8 -7 -7 -7 -7 -6 -6 -6 -6 -6 -6 -5 -5 -5 -5 -5 -4 -4 -4 -4 -4 -3 -3 -3 -3 -2 -2 -1 -1 -1 -------- Run | Yrd Mat Min Exi Min Mat Gar Mat Fac Low Low Dat Pro Fac Low Low Zio Dee Pro Fac Upp Upp Zhi Pro Fac Upp Upp War Pro Res Qua Frg Res Tes Acc Com Ac0 Hostile Shots Fired 3013 | . 41 38 . 42 110 113 100 597 . . . 9 117 . 4 . 74 53 226 94 50 . 35 27 41 45 49 . 130 40 344 20 57 . 196 361 Missed 1139 | . 8 8 . 8 39 32 37 208 . . . 5 68 . 3 . 35 22 76 19 16 . 12 12 18 19 20 . 49 23 129 3 11 . 71 188 Deflected 1 | . . . . . . . . . . . . . . . . . . . . . . . . . . . . . . . . . . . 1 . Hits 1874 | . 33 30 . 34 71 81 63 389 . . . 4 49 . 1 . 39 31 150 75 34 . 23 15 23 26 29 . 81 17 215 17 46 . 125 173 Melee 20 | . . . . . . . . 9 . . . . . . . . . . . 5 . . . . . . . . . . 5 . . . . 1 Projectile 1854 | . 33 30 . 34 71 81 63 380 . . . 4 49 . 1 . 39 31 150 70 34 . 23 15 23 26 29 . 81 17 210 17 46 . 125 172 AOE 34 | . . . . 12 . . . . . . . . . . . . . . . . . . . . . . . . . . 5 2 . . 14 1 Critical Strikes 90 | . . 2 . . . 3 4 11 . . . . . . . . . 3 9 1 2 . . . 1 1 . . 4 2 19 1 5 . 7 15 Actively Blocked 1 | . . . . . . . . . . . . . . . . . . . . . . . . . . . . . . . . . . . . 1 Part Disruptions 10 | . . . . . . . . 1 . . . . . . . . . . . . . . . . 1 . . . 1 . 1 . . . 6 . Damage Taken 28806 | . 439 368 . 882 1285 1003 1032 5201 . . . 74 629 . 12 . 1273 555 2728 1404 640 . 456 119 168 192 362 . 745 158 2587 450 435 . 2776 2833 Core 2688 | . 57 32 . 131 235 77 155 523 . . . 19 159 . 12 . 280 69 241 70 56 . 40 . 8 8 28 . 41 20 201 . . . 23 203 Absorbed by Shields 9912 | . . . . . . . 10 238 . . . . 8 . . . . . 495 . . . . 97 151 129 309 . 770 149 2653 104 321 . 1930 2548 Redirected to Shielding 29 | . . . . . . . . . . . . . . . . . 29 . . . . . . . . . . . . . . . . . . . Ignored by Resistances 3579 | . . . . . . . . 34 . . . . . . . . 434 . 37 161 15 . . 45 66 117 133 . 314 63 1378 . 401 . 329 52 Regen/Repaired (Parts) 2956 | . . . . . . . . 97 . . . . . . . . . . . . . . . . . . . . . . . 269 250 . 836 1504 Core Remaining (%) 59 | 100 . . . 12 . . 15 . . . . 22 . . . . . 38 . . . . 59 . . . . 96 . . 79 . 100 . . 71 Volleys Fired 2382 | 32 39 26 . 12 93 100 114 304 . . . . 5 6 8 . 40 25 123 53 57 . 40 30 86 28 63 13 124 56 318 43 52 2 176 314 Largest 3 | 2 2 2 . 2 2 2 2 2 . . . . 1 1 1 . 2 2 2 2 2 . 2 2 2 2 2 2 2 2 1 1 1 1 3 3 Hottest 380 | 40 100 66 . 53 136 50 100 160 . . . . 90 90 43 . 66 50 89 50 50 . 50 50 50 50 50 50 50 145 140 140 140 140 380 380 Shots Fired 3328 | 64 73 52 . 16 146 143 209 403 . . . . 7 6 8 . 53 50 217 108 115 2 76 47 163 48 124 26 151 64 308 43 52 2 208 344 Gun 531 | 64 18 . . 4 . 85 172 146 . . . . 1 . . . 20 . . . . . . . . . . . . . 19 . 1 . 1 . Cannon 2638 | . 50 52 . 2 142 55 30 168 . . . . 5 6 . . 26 50 201 108 115 2 76 47 163 48 124 26 151 64 280 43 51 2 207 344 Launcher 156 | . 2 . . 10 4 3 7 89 . . . . 1 . 8 . 7 . 16 . . . . . . . . . . . 9 . . . . . Special 3 | . 3 . . . . . . . . . . . . . . . . . . . . . . . . . . . . . . . . . . . Kinetic 692 | 64 68 52 . 6 56 140 182 24 . . . . 1 . . . 20 . . . . . . . . . . . . . 36 . 1 . 42 . Thermal 2349 | . 3 . . . 86 . 20 196 . . . . 5 6 . . 26 50 201 108 115 2 76 47 163 48 124 26 151 64 244 43 51 2 153 339 Explosive 141 | . 2 . . 10 4 3 7 89 . . . . 1 . 8 . 7 . 10 . . . . . . . . . . . . . . . . . Electromagnetic 146 | . . . . . . . . 94 . . . . . . . . . . 6 . . . . . . . . . . . 28 . . . 13 5 Robot Hit Streak 51 | 9 8 12 . 2 14 16 20 18 . . . . 1 . . . 3 7 12 9 6 . 16 11 11 21 10 2 24 23 19 11 16 9 51 25 Robot Miss Streak 5 | 2 5 2 . 3 3 4 3 5 . . . . 1 . . . 4 2 3 4 4 . 3 2 2 1 2 2 2 1 3 1 5 . 3 4 Penetration Max 1 | . . . . . 1 . 1 . . . . . . . . . 1 . . . . . . . . . . . . . 1 1 1 . 1 1 Secondary Targets 7 | . . . . . . 1 4 2 . . . . . . . . . . . . . . . . . . . . . . . . . . . . Max Gunslinging Chain 1 | . . . . . . 1 1 1 . . . . . . . . . . . . . . . . . . . . . . . . . . . . Capacitor 875 | . . . . . . . . . . . . . . . . . . . . . . . . . . . . . 87 35 220 43 51 2 135 302 Shots Hit Robots 1977 | 33 44 36 . 3 104 83 152 258 2 1 . 4 28 3 3 . 32 23 138 60 43 . 35 19 25 25 75 4 101 37 161 22 30 2 149 242 Core Hits 1312 | 12 19 14 . 24 53 46 71 335 2 . . 1 12 1 20 . 70 9 103 20 28 . 13 11 12 9 38 1 50 15 119 17 16 . 78 93 Critical Kills 53 | . . . . . 1 . . . . . . . . 1 . . 1 . . . . . . . . . . . . 1 24 1 2 1 6 15 Critical Parts Destroyed 19 | . . . . . . . . 2 . 1 . 1 1 1 1 . 4 . . . . . . . . . . . . . 8 . . . . . Critical Strikes 110 | . 2 4 . . 7 4 3 4 . 1 . 1 5 2 1 . 9 . . . . . . . . . . . . 1 40 1 2 1 7 15 Meltdown 41 | . . . . . 1 . . . . . . . . . . . . . . . . . . . . . . . . 1 14 1 2 1 6 15 Destroy 27 | . . . . . . . . . . . . . . . . . 4 . . . . . . . . . . . . . 23 . . . . . Blast 22 | . 2 4 . . 4 4 3 1 . . . . . . . . . . . . . . . . . . . . . . 3 . . . 1 . Corrupt 1 | . . . . . . . . 1 . . . . . . . . . . . . . . . . . . . . . . . . . . . . Smash 13 | . . . . . . . . 2 . 1 . 1 1 2 1 . 5 . . . . . . . . . . . . . . . . . . . Sever 2 | . . . . . 2 . . . . . . . . . . . . . . . . . . . . . . . . . . . . . . . Impale 4 | . . . . . . . . . . . . . 4 . . . . . . . . . . . . . . . . . . . . . . . Melee Attacks 231 | . . . . . 10 9 4 11 11 7 . 6 60 18 20 . 34 . . . . . . . . . . . . 1 7 2 11 4 15 1 Kinetic 1 | . . . . . . . . . . . . . . . . . . . . . . . . . . . . . . 1 . . . . . . Impact 111 | . . . . . . 5 4 9 5 5 . 5 24 16 18 . 20 . . . . . . . . . . . . . . . . . . . Slashing 72 | . . . . . 10 4 . . . . . . . 2 2 . 14 . . . . . . . . . . . . . 7 2 11 4 15 1 Piercing 47 | . . . . . . . . 2 6 2 . 1 36 . . . . . . . . . . . . . . . . . . . . . . . Sneak Attacks 35 | . . . . . 6 . . 1 2 1 . . 12 1 2 . 4 . . . . . . . . . . . . . 1 1 . 1 3 . Combat Hostiles 1 | . . . . . . . . . . . . . . . 1 . . . . . . . . . . . . . . . . . . . . . Follow-up Attacks 1 | . . . . . . . . . . . . . 1 . . . . . . . . . . . . . . . . . . . . . . . Damage Inflicted 122402 | 465 1025 805 . 887 3994 2679 4254 20398 98 137 . 222 1904 318 1107 . 4381 1285 9709 2741 2386 . 1542 844 1506 1169 3542 166 5007 1695 13961 2771 3274 230 12248 15652 Guns 6884 | 465 181 . . 26 . 843 2265 2287 . . . . . . . . 49 . . . . . . . . . . . . . 641 . . . 127 . Cannons 84030 | . 602 776 . . 2852 1593 756 3450 . . . . 27 . . . . 1285 6365 2741 2245 . 1542 844 1506 1169 3542 166 4975 1695 12812 2581 3170 86 11598 15652 Explosions 24924 | . 222 . . 830 622 243 1214 14276 . . . . 273 . 839 . 2680 . 3111 . 141 . . . . . . . 32 . 337 . 104 . . . Melee 6173 | . . . . . 470 . . 385 98 137 . 222 1604 318 268 . 1652 . . . . . . . . . . . . . 162 190 . 144 523 . Ramming 391 | . 20 29 . 31 50 . 19 . . . . . . . . . . . 233 . . . . . . . . . . . 9 . . . . . Kinetic 12292 | 465 783 776 . 26 1744 2436 2746 646 . . . . . . . . 49 . . . . . . . . . . . . . 1075 . . . 1546 . Thermal 78305 | . . . . . 1108 . 275 5064 . . . . 27 . . . . 1285 6906 2741 2386 . 1542 844 1506 1169 3542 166 4975 1695 11737 2581 3170 86 9975 15525 Explosive 22098 | . 222 . . 830 622 243 1214 13100 . . . . 273 . 839 . 2680 . 1971 . . . . . . . . . . . . . 104 . . . Electromagnetic 3143 | . . . . . . . . 1203 . . . . . . . . . . 599 . . . . . . . . . 32 . 978 . . . 204 127 Impact 2741 | . . . . . . . . 385 . 137 . 222 539 318 268 . 872 . . . . . . . . . . . . . . . . . . . Slashing 2269 | . . . . . 470 . . . . . . . . . . . 780 . . . . . . . . . . . . . 162 190 . 144 523 . Piercing 1163 | . . . . . . . . . 98 . . . 1065 . . . . . . . . . . . . . . . . . . . . . . . Highest Corruption 23 | . . . . . . 1 1 6 4 4 4 4 4 4 4 4 . 2 16 16 16 16 17 . 2 2 2 . 3 5 23 . . . 6 5 Average Corruption 7 | . . . . . . 1 1 2 4 4 4 4 2 4 4 4 . 1 10 16 16 16 16 . 1 2 2 . 2 3 16 . . . 2 4 Corruption Purged 21 | . . . . . . . . 10 . . . . . . . . . . 4 . . . . . . . . . . . . . . . 7 . Corruption Blocked . | . . . . . . . . . . . . . . . . . . . . . . . . . . . . . . . . . . . . . Effects 635 | . . . . . . 6 8 37 5 3 . 5 13 9 8 1 . 3 43 85 71 35 40 . 22 16 1 . 19 18 133 . . . 13 41 Message Errors 169 | . . . . . . 3 2 14 3 1 . 1 4 2 . . . 1 11 21 16 10 13 . 5 4 . . 8 11 27 . . . 1 11 Matter Fused 146 | . . . . . . 1 2 7 . 1 . . 3 1 4 1 . 1 6 19 24 7 8 . 7 3 1 . 1 . 35 . . . 5 9 Heat Flow Errors 71 | . . . . . . . 2 5 . . . 4 1 3 . . . 1 4 15 4 4 1 . . 5 . . 1 1 16 . . . 2 2 Energy Discharges 70 | . . . . . . . 1 3 1 1 . . 1 2 2 . . . 6 8 4 8 2 . 3 1 . . 3 3 17 . . . . 4 Parts Rejected 4 | . . . . . . . . . . . . . . . . . . . . . . . . . 1 . . . . . . . . . . 3 Parts Fused 5 | . . . . . . . . 2 . . . . . 1 . . . . . . . . . . 1 1 . . . . . . . . . . Data Loss (minor) 67 | . . . . . . . . 4 1 . . . . . 1 . . . 6 6 8 1 10 . 3 1 . . 3 1 13 . . . 3 6 Data Loss (major) 36 | . . . . . . . . 1 . . . . 2 . 1 . . . 2 4 6 2 3 . . 1 . . 1 1 8 . . . 2 2 Misfires 26 | . . . . . . 1 . 1 . . . . 2 . . . . . 2 6 4 2 1 . 1 . . . . 1 3 . . . . 2 Alerts 10 | . . . . . . 1 . . . . . . . . . . . . 1 2 2 1 . . . . . . 1 . . . . . . 2 Misdirections 1 | . . . . . . . . . . . . . . . . . . . . . . . . . . . . . . . 1 . . . . . Weapon Failures 30 | . . . . . . . 1 . . . . . . . . . . . 5 4 3 . 2 . 1 . . . 1 . 13 . . . . . Overload Shots . | . . . . . . . . . . . . . . . . . . . . . . . . . . . . . . . . . . . . . Overflow Damage 7173 | . 15 2 . 8 239 111 87 600 . 137 . 94 793 182 146 . 657 123 593 58 87 . 43 10 151 . 1 74 151 63 1060 296 579 104 605 104 Projectiles 3840 | . 6 2 . . 95 111 20 74 . . . . . . . . . 123 484 58 87 . 43 10 151 . 1 74 151 63 943 141 579 . 520 104 Explosions 802 | . 6 . . 8 45 . 67 432 . . . . 7 . 40 . 130 . 62 . . . . . . . . . . . 5 . . . . . Melee 2531 | . 3 . . . 99 . . 94 . 137 . 94 786 182 106 . 527 . 47 . . . . . . . . . . . 112 155 . 104 85 . Knockbacks 87 | . 10 13 . 1 8 3 4 8 . 1 . 2 1 . 2 . 6 . 3 . . . . . . . . . . . 19 . . . 6 . Impact 20 | . . 1 . 1 . . . 3 . 1 . 2 1 . 2 . 6 . 3 . . . . . . . . . . . . . . . . . Kinetic 61 | . 9 10 . . 7 3 3 5 . . . . . . . . . . . . . . . . . . . . . . 18 . . . 6 . Secondary 6 | . 1 2 . . 1 . 1 . . . . . . . . . . . . . . . . . . . . . . . 1 . . . . . Self-Inflicted Damage 643 | . 44 . . 52 . . 30 247 . . . . 48 . . . 29 . 122 . . . . . . . . . 25 . 46 . . . . . Shots 21 | . 1 . . 2 . . 1 9 . . . . 1 . . . 1 . 3 . . . . . . . . . 1 . 2 . . . . . Rammed 28 | . 6 6 . 5 7 . 4 . . . . . . . . . . . . . . . . . . . . . . . . . . . . . Targets Rammed 44 | . 8 6 . 6 7 . 4 . . . . . . . . . . . 11 . . . . . . . . . . . 2 . . . . . Kicked 13 | . . . . . . . . . . . . . . . . . . . 11 . . . . . . . . . . . 2 . . . . . Crushed 3 | . 2 . . 1 . . . . . . . . . . . . . . . . . . . . . . . . . . . . . . . . Highest Temperature 470 | 6 178 192 . 44 411 17 242 280 . . . 198 160 261 . . 234 236 306 470 271 239 259 74 115 225 318 . 86 218 250 190 216 75 405 167 Average Temperature 78 | 6 43 77 . 24 58 5 52 69 . . . 112 50 87 . . 56 50 76 128 63 101 52 25 24 64 98 . 37 80 88 98 106 47 121 117 Received Heat Transfer 4735 | . 198 189 . 20 360 180 327 1337 . . . 27 36 . . . 243 72 275 372 273 . 36 17 . 9 41 . 107 28 323 9 . . 109 147 Thermoelectric Energy+ 7805 | . . . . . . . . . . . . . . . . . . . . . . . . . . . . . . . 257 438 550 . 3125 3435 Effects 5 | . . . . . 2 . . . . . . . . . . . . . 1 . . . . . . . . . . . . . 2 . . . Energy Bleed 1 | . . . . . 1 . . . . . . . . . . . . . . . . . . . . . . . . . . . . . . . Interference 3 | . . . . . . . . . . . . . . . . . . . 1 . . . . . . . . . . . . . 2 . . . Matter Decay 1 | . . . . . 1 . . . . . . . . . . . . . . . . . . . . . . . . . . . . . . . Siege Activations . | . . . . . . . . . . . . . . . . . . . . . . . . . . . . . . . . . . . . . Martial Activations . | . . . . . . . . . . . . . . . . . . . . . . . . . . . . . . . . . . . . . Shielding Activations 5 | . . . . . . . . . . . . . . . . . . . . . . . . . . . . . 4 . . . . . 1 . Total Turns 58 | . . . . . . . . . . . . . . . . . . . . . . . . . . . . . 26 . . . . . 32 . Longest Duration 32 | . . . . . . . . . . . . . . . . . . . . . . . . . . . . . 10 . . . . . 32 . Robots Disrupted 2 | . . . . . . . . . . . . . . . . . . . . . . . . . . . . . . . 2 . . . . . Combat Hostiles 2 | . . . . . . . . . . . . . . . . . . . . . . . . . . . . . . . 2 . . . . . Robots Corrupted 24 | . 1 . . . 1 . . 3 . 1 . 2 3 . 1 . 2 . 1 . . . . . . . . . . . 6 . . . 2 1 Combat Hostiles 16 | . . . . . . . . 3 . . . 2 . . . . 2 . . . . . . . . . . . . . 6 . . . 2 1 Parts Fried 33 | . 1 . . . 2 . . 3 . 2 . 3 3 . . . . . 4 . . . . . . . . . . . 8 . . . . 7 Impact Corruptions 40 | . 1 . . . 1 . . 4 . 3 . 3 11 2 4 . 7 . 4 . . . . . . . . . . . . . . . . . Robots Melted 43 | . . . . . 1 . . 2 . . . . . . . . . . . . . . . . . . . . . 1 14 1 2 1 6 15 Combat Hostiles 39 | . . . . . 1 . . 2 . . . . . . . . . . . . . . . . . . . . . . 13 1 1 . 6 15 Parts Melted 123 | . . . . . 5 1 . 20 . . . . . . . . . 1 3 4 2 . 2 1 . 1 1 . 6 2 22 2 6 1 11 32 Heat Transferred 49139 | . . . . . 1998 . 407 7923 . . . . 37 . . . . 650 3650 1550 1460 . 875 475 775 625 1725 100 2750 1057 7263 1550 1686 50 4184 8349 Parts Sabotaged . | . . . . . . . . . . . . . . . . . . . . . . . . . . . . . . . . . . . . . Parts Stolen . | . . . . . . . . . . . . . . . . . . . . . . . . . . . . . . . . . . . . . Parts Stripped 18 | . . . . . . . . . . . . . . . . . . . . . . . . . . . . . . 18 . . . . . . Power Chain Reactions 5 | . . . . . . . . 3 . . . . . . . . . . 1 . . . . . . . . . 1 . . . . . . . Alert | -11 -10 -10 -10 -9 -8 -8 -8 -7 -7 -7 -7 -6 -6 -6 -6 -6 -6 -5 -5 -5 -5 -5 -4 -4 -4 -4 -4 -3 -3 -3 -3 -2 -2 -1 -1 -1 ------- Run | Yrd Mat Min Exi Min Mat Gar Mat Fac Low Low Dat Pro Fac Low Low Zio Dee Pro Fac Upp Upp Zhi Pro Fac Upp Upp War Pro Res Qua Frg Res Tes Acc Com Ac0 Maximum Alert Level 5 | . . . . . 2 5 4 5 . . . . 1 . . . . . 3 . . . . 1 . . . . 2 1 5 4 3 2 2 . Low Security (%) 31 | 100 100 100 . 100 47 . . . . . . . 70 . . . . . 51 . . . . 92 . . . . 10 . 21 . . 9 24 . Level 1 16 | . . . . . 37 3 . 6 . . . . 29 . . . . . 13 . . . . 7 . . . . 53 100 9 . 3 86 13 . Level 2 21 | . . . . . 14 9 1 52 . . . . . . . . . . 12 . . . . . . . . . 35 . 6 . 78 4 61 . Level 3 10 | . . . . . . 37 83 7 . . . . . . . . . . 23 . . . . . . . . . . . 15 . 17 . . . Level 4 10 | . . . . . . 28 14 11 . . . . . . . . . . . . . . . . . . . . . . 8 100 . . . . Level 5 7 | . . . . . . 20 . 7 . . . . . . . . . . . . . . . . . . . . . . 39 . . . . . High Security 2 | . . . . . . . . 14 . . . . . . . . . . . . . . . . . . . . . . . . . . . . Max Security . | . . . . . . . . . . . . . . . . . . . . . . . . . . . . . . . . . . . . . Peak Influence 3315 | 15 89 83 . 14 561 1770 1160 3315 . . . . 315 . . . . . 917 . . . . 225 . . . . 663 366 2611 1547 785 463 439 . Initial 1467 | . . 14 . . . 356 862 517 . . . . 94 . . . . . 39 . . . . . . . . . 300 366 155 1467 783 463 120 . Average 639 | 2 26 20 . 2 199 1156 935 1044 . . . . 144 . . . . . 324 . . . . 55 . . . . 382 290 1180 1432 570 266 253 . Influence Increases 21920 | 60 427 256 . 41 1085 1424 828 3973 . 45 . 231 744 55 230 . . 230 1540 340 466 . 210 365 360 100 410 10 1279 315 3256 464 749 36 1116 1275 Destroy 0b10 Robot/C 10900 | . 200 160 . . 640 740 540 2140 . . . 160 80 . 160 . . 140 680 300 380 . 200 160 220 80 260 . 600 160 1660 260 300 . 680 . Destroy 0b10 Robot/NC 1065 | 60 35 15 . 5 65 5 60 330 . . . . 75 10 5 . . . 160 . 15 . . 5 . . 15 10 30 15 40 20 25 10 55 . Destroy Leader 1846 | . 58 30 . . 184 20 140 442 . . . 30 26 . 20 . . 30 148 30 30 . 10 42 20 20 . . 116 22 160 76 54 2 136 . Allied During Kill 107 | . . 19 . . . 26 . . . . . 41 . . . . . . . 10 11 . . . . . . . . . . . . . . . Successful Hack 314 | . 38 . . . 25 14 . 52 . . . . 72 . . . . . 30 . . . . 14 . . . . 22 . 24 . . . 23 . Select Force Hacks 90 | . 60 . . . 30 . . . . . . . . . . . . . . . . . . . . . . . . . . . . . . . Disable Machine 1785 | . 15 30 . . 60 15 15 510 . . . . . . . . . . 165 . . . . 60 . . . . 60 60 435 15 75 15 75 180 Anti-Garrison Action 650 | . . . . . . 500 . . . . . . . . . . . . . . . . . . . . . . . . 150 . . . . . Destroy Structure 3308 | . 21 2 . 36 81 44 73 319 . . . . 41 . . . . . 282 . . . . 84 . . . . 76 28 682 93 195 9 147 1095 Advance Influence 300 | . . . . . . . . . . . . . . . . . . . . . . . . . . . . . 300 . . . . . . . Partial Spotted 135 | . . . . . . 15 . 15 . . . . 90 . . . . . . . . . . . . . . . 15 . . . . . . . Lose Combat Pursuer 1320 | . . . . . . 45 . 165 . 45 . . 360 45 45 . . 60 75 . 30 . . . 120 . 135 . 60 30 105 . . . . . Active Sensor Use 100 | . . . . . . . . . . . . . . . . . . . . . . . . . . . . . . . . . 100 . . . Influence Decreases 20785 | 60 389 269 25 38 540 202 1460 1806 1334 456 1560 80 805 145 100 130 . 166 690 994 636 90 210 176 413 218 182 256 628 689 923 1681 1370 619 763 682 Entered New Map 9100 | . . 24 25 . 3 192 908 621 1224 376 1560 . 57 34 . 130 . . 25 339 50 90 . . 71 27 18 246 . 285 122 1143 610 309 69 542 Time Decay 8997 | 60 370 245 . 10 507 . 392 735 110 80 . 60 368 111 100 . . 156 421 595 556 . 210 176 342 191 164 10 478 404 654 538 310 150 494 . Search Patrol Dispatched 200 | . . . . . . . . . . . . . 200 . . . . . . . . . . . . . . . . . . . . . . . Lost Part 578 | . . . . 18 30 10 10 300 . . . . 30 . . . . 10 70 . 10 . . . . . . . . . 30 . . 10 50 . Lost Ally 250 | . . . . 10 . . . . . . . 20 . . . . . . . 60 20 . . . . . . . . . . . . . . 140 Purge Threat 1660 | . 19 . . . . . 150 150 . . . . 150 . . . . . 174 . . . . . . . . . 150 . 117 . 450 150 150 . Squads Dispatched 137 | . 2 . . . 8 . 10 57 . . . . 4 . . . . . 15 . . . 1 2 . . . . 4 3 14 2 5 4 6 . Investigation 11 | . 2 . . . 1 . . 4 . . . . . . . . . . 2 . . . 1 . . . . . . . . . 1 . . . Extermination 33 | . . . . . . . . 7 . . . . 2 . . . . . 4 . . . . 2 . . . . 4 2 5 . 2 1 4 . Reinforcement 23 | . . . . . 4 . 5 4 . . . . 1 . . . . . 3 . . . . . . . . . . 1 . 2 1 . 2 . Assault 44 | . . . . . . . 2 29 . . . . . . . . . . 3 . . . . . . . . . . . 9 . 1 . . . Garrison 26 | . . . . . 3 . 3 13 . . . . 1 . . . . . 3 . . . . . . . . . . . . . . 3 . . Intercept . | . . . . . . . . . . . . . . . . . . . . . . . . . . . . . . . . . . . . . Searches Triggered 2 | . . . . . . . . . . . . . 2 . . . . . . . . . . . . . . . . . . . . . . . Unchained Authorized 1 | . . . . . . . . . . . . . . . . . . . . . . . . . . . . . . . . . 1 . . . Data Miner Redirects 1 | . . . . . . . . . . . . . . . . . . . 1 . . . . . . . . . . . . . . . . . Construction Impeded 5 | . . . . . . . 2 2 . . . . 1 . . . . . . . . . . . . . . . . . . . . . . . Haulers Reinforced 4 | . . . . . . . . 1 . . . . . . . . . . 1 . . . . . . . . . . . . 2 . . . . Active Scanning Responses 1 | . . . . . . . . . . . . . . . . . . . . . . . . . . . . . . . . . 1 . . . Cargo Convoy Interrupts 1 | . . . . . . . . . . . . . . . . . . . 1 . . . . . . . . . . . . . . . . . Stealth | -11 -10 -10 -10 -9 -8 -8 -8 -7 -7 -7 -7 -6 -6 -6 -6 -6 -6 -5 -5 -5 -5 -5 -4 -4 -4 -4 -4 -3 -3 -3 -3 -2 -2 -1 -1 -1 --------- Run | Yrd Mat Min Exi Min Mat Gar Mat Fac Low Low Dat Pro Fac Low Low Zio Dee Pro Fac Upp Upp Zhi Pro Fac Upp Upp War Pro Res Qua Frg Res Tes Acc Com Ac0 Distress Signals 58 | . . . . . 4 . 8 1 . . . . 2 . . . . . 2 . . . . . . . 2 . 2 . . 6 2 2 27 . Communications Jammed 71 | . . . . . . . . . . . . . . . . . . . 19 . . . . . . . . . 52 . . . . . . . Distress Signals 69 | . . . . . . . . . . . . . . . . . . . 17 . . . . . . . . . 52 . . . . . . . Times Spotted 941 | . 12 8 . 18 45 38 47 162 2 2 . 8 30 1 3 . 50 14 52 15 16 . 7 14 14 5 94 3 47 12 95 9 16 . 40 62 Peak Tracking Total 37 | . 3 3 . 13 7 6 7 16 2 3 . 5 11 3 6 . 37 5 12 7 4 . 1 6 5 2 17 1 7 4 7 4 5 . 6 6 Tactical Retreats 48 | . . . . 2 . 2 . 6 . 1 . . 10 1 1 . . 1 2 . 2 . . . 5 . 4 . 2 1 6 . . . . 2 Traps | -11 -10 -10 -10 -9 -8 -8 -8 -7 -7 -7 -7 -6 -6 -6 -6 -6 -6 -5 -5 -5 -5 -5 -4 -4 -4 -4 -4 -3 -3 -3 -3 -2 -2 -1 -1 -1 ------- Run | Yrd Mat Min Exi Min Mat Gar Mat Fac Low Low Dat Pro Fac Low Low Zio Dee Pro Fac Upp Upp Zhi Pro Fac Upp Upp War Pro Res Qua Frg Res Tes Acc Com Ac0 Traps Triggered 38 | . 1 . . . 1 1 . 11 . . . . 6 . . . . . 6 . . . . . . . . . 1 1 7 . 1 . 2 . Indirectly 1 | . . . . . . . . . . . . . . . . . . . . . . . . . . . . . . . 1 . . . . . Trap Hack Attempts 87 | . 87 . . . . . . . . . . . . . . . . . . . . . . . . . . . . . . . . . . . Triggered . | . . . . . . . . . . . . . . . . . . . . . . . . . . . . . . . . . . . . . Disarmed 7 | . 7 . . . . . . . . . . . . . . . . . . . . . . . . . . . . . . . . . . . Reprogrammed 6 | . 6 . . . . . . . . . . . . . . . . . . . . . . . . . . . . . . . . . . . Reused . | . . . . . . . . . . . . . . . . . . . . . . . . . . . . . . . . . . . . . Traps Extracted 4 | . 4 . . . . . . . . . . . . . . . . . . . . . . . . . . . . . . . . . . . Installed . | . . . . . . . . . . . . . . . . . . . . . . . . . . . . . . . . . . . . . Triggered . | . . . . . . . . . . . . . . . . . . . . . . . . . . . . . . . . . . . . . Most Traps Carried 4 | . 4 4 4 4 4 4 4 . . . . . . . . . . . . . . . . . . . . . . . . . . . . . Machines | -11 -10 -10 -10 -9 -8 -8 -8 -7 -7 -7 -7 -6 -6 -6 -6 -6 -6 -5 -5 -5 -5 -5 -4 -4 -4 -4 -4 -3 -3 -3 -3 -2 -2 -1 -1 -1 ---------- Run | Yrd Mat Min Exi Min Mat Gar Mat Fac Low Low Dat Pro Fac Low Low Zio Dee Pro Fac Upp Upp Zhi Pro Fac Upp Upp War Pro Res Qua Frg Res Tes Acc Com Ac0 Machines Disabled 157 | . 1 2 . . 4 6 1 34 . . . . . . . . 2 . 11 . 3 . 3 4 1 . . . 4 4 48 1 5 1 5 17 Max in Single Turn 10 | . 1 1 . . 3 1 1 10 . . . . . . . . 1 . 2 . 2 . 1 1 1 . . . 1 1 2 1 1 1 1 2 Garrison Access 4 | . . . . . . . . . . . . . . . . . . . . . . . . . . . . . . . 1 2 . 1 . . Garrison Relay 5 | . . . . . . 5 . . . . . . . . . . . . . . . . . . . . . . . . . . . . . . Machines Repaired . | . . . . . . . . . . . . . . . . . . . . . . . . . . . . . . . . . . . . . Machines Dismantled . | . . . . . . . . . . . . . . . . . . . . . . . . . . . . . . . . . . . . . Machines Sabotaged . | . . . . . . . . . . . . . . . . . . . . . . . . . . . . . . . . . . . . . Overloaded Fab Kills . | . . . . . . . . . . . . . . . . . . . . . . . . . . . . . . . . . . . . . Hacking | -11 -10 -10 -10 -9 -8 -8 -8 -7 -7 -7 -7 -6 -6 -6 -6 -6 -6 -5 -5 -5 -5 -5 -4 -4 -4 -4 -4 -3 -3 -3 -3 -2 -2 -1 -1 -1 --------- Run | Yrd Mat Min Exi Min Mat Gar Mat Fac Low Low Dat Pro Fac Low Low Zio Dee Pro Fac Upp Upp Zhi Pro Fac Upp Upp War Pro Res Qua Frg Res Tes Acc Com Ac0 Machines Accessed 122 | . 9 1 1 . 8 5 3 15 1 . 4 . 8 . 1 . . . 12 3 2 4 1 4 2 . 1 . 9 4 4 3 5 3 8 1 Terminals 78 | . 7 . . . 5 5 3 10 . . . . 5 . . . . . 9 . 1 . 1 3 1 . . . 8 3 3 1 4 2 7 . Fabricators 4 | . . . . . . . . 1 . . . . 2 . . . . . 1 . . . . . . . . . . . . . . . . . Repair Stations 1 | . . . . . . . . 1 . . . . . . . . . . . . . . . . . . . . . . . . . . . . Recycling Units 9 | . 2 . . . 1 . . 2 . . . . 1 . . . . . 2 . . . . . . . . . . . . . . . 1 . Scanalyzers 5 | . . . . . 1 . . 1 . . . . . . . . . . . . . . . . . . . . 1 1 . . 1 . . . Garrison Access 6 | . . . . . 1 . . . . . . . . . . . . . . . . . . 1 . . . . . . 1 2 . 1 . . Total Hacks 346 | . 31 1 1 . 26 11 9 33 1 . 32 . 25 . 1 . . . 40 7 7 17 5 7 11 . 1 . 20 6 7 4 9 5 13 16 Successful 195 | . 18 1 1 . 13 1 3 11 1 . 32 . 9 . 1 . . . 13 7 7 17 5 1 11 . 1 . 4 1 3 3 6 2 7 16 Failed 150 | . 13 . . . 12 10 6 22 . . . . 16 . . . . . 27 . . . . 6 . . . . 16 5 4 1 3 3 6 . Catastrophic 39 | . 2 . . . 4 3 1 7 . . . . 4 . . . . . 5 . . . . . . . . . 6 2 1 . 2 1 1 . Database Lockouts 1 | . . . . . 1 . . . . . . . . . . . . . . . . . . . . . . . . . . . . . . . Manual 112 | . 21 . 2 . 18 . 4 13 . . . . 8 . . 5 . . 19 . . . . 1 . . 1 . 5 . 4 2 4 1 4 . Terminals 205 | . 25 . . . 19 11 9 19 . . . . 15 . . . . . 33 . 6 . 5 6 6 . . . 16 5 6 2 7 3 12 . Fabricators 11 | . . . . . . . . 2 . . . . 7 . . . . . 2 . . . . . . . . . . . . . . . . . Repair Stations 2 | . . . . . . . . 2 . . . . . . . . . . . . . . . . . . . . . . . . . . . . Recycling Units 24 | . 6 . . . 2 . . 7 . . . . 3 . . . . . 5 . . . . . . . . . . . . . . . 1 . Scanalyzers 13 | . . . . . 3 . . 3 . . . . . . . . . . . . . . . . . . . . 4 1 . . 2 . . . Garrison Access 8 | . . . . . 2 . . . . . . . . . . . . . . . . . . 1 . . . . . . 1 2 . 2 . . Terminal Hacks 155 | . 10 1 1 . 4 1 3 4 1 . 32 . 5 . 1 . . . 9 7 7 17 5 . 11 . 1 . 2 1 3 1 4 1 7 16 Record 60 | . . . 1 . . . . . . . 11 . . . . . . . . 5 6 5 5 . 11 . . . . . . . . . . 16 Part Schematic 16 | . . . . . . . . . . . 12 . . . . . . . . . . 4 . . . . . . . . . . . . . . Robot Schematic 6 | . . . . . . . . . . . 6 . . . . . . . . . . . . . . . . . . . . . . . . . Robot Analysis 5 | . 1 . . . . . . . . . . . . . . . . . . . . 4 . . . . . . . . . . . . . . Prototype ID Bank 18 | . 2 . . . 2 . 1 2 . . 3 . 2 . . . . . 1 . . 4 . . . . . . . . 1 . . . . . Open Door 8 | . . 1 . . . . . . 1 . . . . . 1 . . . . 2 1 . . . . . 1 . . . . . . . 1 . Branch Access Points 4 | . . . . . 1 . . . . . . . 1 . . . . . 1 . . . . . . . . . . . . 1 . . . . Emergency Access Points 4 | . . . . . . . 1 1 . . . . . . . . . . 1 . . . . . . . . . 1 . . . . . . . Terminal Index 2 | . . . . . 1 . . . . . . . . . . . . . . . . . . . . . . . . . . . . . 1 . Alert Level 2 | . . . . . . . . . . . . . . . . . . . . . . . . . . . . . . . . . 1 . 1 . Unreport Threat 13 | . 1 . . . . . 1 1 . . . . 1 . . . . . 2 . . . . . . . . . 1 . 1 . 3 1 1 . Locate Traps 6 | . 3 . . . . . . . . . . . . . . . . . 1 . . . . . . . . . . 1 . . . . 1 . Disarm Traps 1 | . 1 . . . . . . . . . . . . . . . . . . . . . . . . . . . . . . . . . . . Transport Status 1 | . . . . . . . . . . . . . . . . . . . 1 . . . . . . . . . . . . . . . . . Hauler Manifests 2 | . 1 . . . . . . . . . . . . . . . . . 1 . . . . . . . . . . . . . . . . . Registered Components 1 | . . . . . . . . . . . . . . . . . . . 1 . . . . . . . . . . . . . . . . . Zone Layout 2 | . 1 . . . . . . . . . . . 1 . . . . . . . . . . . . . . . . . . . . . . . Garrison Registry 1 | . . . . . . 1 . . . . . . . . . . . . . . . . . . . . . . . . . . . . . . Proto ID Catalog 1 | . . . . . . . . . . . . . . . . . . . . . . . . . . . . . . . 1 . . . . . Disengage Seal 2 | . . . . . . . . . . . . . . . . . . . . . . . . . . . . . . . . . . . 2 . Fabricator Hacks 3 | . . . . . . . . 1 . . . . 2 . . . . . . . . . . . . . . . . . . . . . . . Network Status 1 | . . . . . . . . 1 . . . . . . . . . . . . . . . . . . . . . . . . . . . . Build 2 | . . . . . . . . . . . . . 2 . . . . . . . . . . . . . . . . . . . . . . . Repair Station Hacks . | . . . . . . . . . . . . . . . . . . . . . . . . . . . . . . . . . . . . . Recycling Unit Hacks 5 | . 1 . . . 1 . . 2 . . . . 1 . . . . . . . . . . . . . . . . . . . . . . . Retrieve Components 5 | . 1 . . . 1 . . 2 . . . . 1 . . . . . . . . . . . . . . . . . . . . . . . Scanalyzer 7 | . . . . . 1 . . 2 . . . . . . . . . . . . . . . . . . . . 2 . . . 2 . . . Insert Component 1 | . . . . . . . . . . . . . . . . . . . . . . . . . . . . . . . . . 1 . . . Retrieve Study 6 | . . . . . 1 . . 2 . . . . . . . . . . . . . . . . . . . . 2 . . . 1 . . . Garrison Access Hacks 4 | . . . . . 1 . . . . . . . . . . . . . . . . . . . . . . . . . . 2 . 1 . . Unlock Access 1 | . . . . . 1 . . . . . . . . . . . . . . . . . . . . . . . . . . . . . . . Seal Access 3 | . . . . . . . . . . . . . . . . . . . . . . . . . . . . . . . . 2 . 1 . . Unauthorized Hacks 21 | . 7 . . . 6 . . 2 . . . . 1 . . . . . 4 . . . . 1 . . . . . . . . . . . . Terminals 14 | . 5 . . . 5 . . . . . . . . . . . . . 3 . . . . 1 . . . . . . . . . . . . Botnet 5 | . . . . . 2 . . . . . . . . . . . . . 2 . . . . 1 . . . . . . . . . . . . Skim 9 | . 5 . . . 3 . . . . . . . . . . . . . 1 . . . . . . . . . . . . . . . . . Fabricators 1 | . . . . . . . . 1 . . . . . . . . . . . . . . . . . . . . . . . . . . . . Haulers 1 | . . . . . . . . 1 . . . . . . . . . . . . . . . . . . . . . . . . . . . . Repair Stations 1 | . . . . . . . . 1 . . . . . . . . . . . . . . . . . . . . . . . . . . . . Patch 1 | . . . . . . . . 1 . . . . . . . . . . . . . . . . . . . . . . . . . . . . Recycling Units 5 | . 2 . . . 1 . . . . . . . 1 . . . . . 1 . . . . . . . . . . . . . . . . . Reject 2 | . . . . . . . . . . . . . 1 . . . . . 1 . . . . . . . . . . . . . . . . . Tunnel 3 | . 2 . . . 1 . . . . . . . . . . . . . . . . . . . . . . . . . . . . . . . Scanalyzers . | . . . . . . . . . . . . . . . . . . . . . . . . . . . . . . . . . . . . . Garrison Access . | . . . . . . . . . . . . . . . . . . . . . . . . . . . . . . . . . . . . . Data Cores Recovered 1 | . . . . . . . . . . . . . . . . . . . 1 . . . . . . . . . . . . . . . . . Used 1 | . . . . . . . . . . . . . . . . . . . 1 . . . . . . . . . . . . . . . . . Hacking Detections 91 | . 7 . . . 5 5 3 14 . . . . 8 . . . . . 12 . . . 1 4 1 . . . 9 4 3 1 5 3 6 . Full Trace Events 6 | . . . . . . 3 . 1 . . . . . . . . . . 1 . . . 1 . . . . . . . . . . . . . Feedback Events 1 | . . . . . . . . . . . . . . . . . . . . . . . 1 . . . . . . . . . . . . . Corruption 1 | . . . . . . . . . . . . . . . . . . . . . . . 1 . . . . . . . . . . . . . Feedback Blocked . | . . . . . . . . . . . . . . . . . . . . . . . . . . . . . . . . . . . . . Robot Schematics Acquired 6 | . . . . . . . . . . . 6 . . . . . . . . . . . . . . . . . . . . . . . . . Robots Built . | . . . . . . . . . . . . . . . . . . . . . . . . . . . . . . . . . . . . . Authchips . | . . . . . . . . . . . . . . . . . . . . . . . . . . . . . . . . . . . . . Time . | . . . . . . . . . . . . . . . . . . . . . . . . . . . . . . . . . . . . . Total Robot Build Rating . | . . . . . . . . . . . . . . . . . . . . . . . . . . . . . . . . . . . . . Part Schematics Acquired 20 | . . . . . . . . . . . 12 . . . . . . . . . . 4 . . . . . . . . 4 . . . . . Parts Built 3 | . . . . . . . . . . . . . 3 . . . . . . . . . . . . . . . . . . . . . . . Authchips . | . . . . . . . . . . . . . . . . . . . . . . . . . . . . . . . . . . . . . Time 164 | . . . . . . . . . . . . . 164 . . . . . . . . . . . . . . . . . . . . . . . Total Part Build Rating 17 | . . . . . . . . . . . . . 17 . . . . . . . . . . . . . . . . . . . . . . . Part Studies Acquired 6 | . . . . . 1 . . 2 . . . . . . . . . . . . . . . . . . . . 2 . . . 1 . . . Parts Repaired . | . . . . . . . . . . . . . . . . . . . . . . . . . . . . . . . . . . . . . Time . | . . . . . . . . . . . . . . . . . . . . . . . . . . . . . . . . . . . . . Parts Recycled . | . . . . . . . . . . . . . . . . . . . . . . . . . . . . . . . . . . . . . Recycled Matter . | . . . . . . . . . . . . . . . . . . . . . . . . . . . . . . . . . . . . . Retrieved Matter . | . . . . . . . . . . . . . . . . . . . . . . . . . . . . . . . . . . . . . Retrieved Components 20 | . 9 . . . 9 . . 2 . . . . . . . . . . . . . . . . . . . . . . . . . . . . Parts Scanalyzed . | . . . . . . . . . . . . . . . . . . . . . . . . . . . . . . . . . . . . . Part Schematics Acquired . | . . . . . . . . . . . . . . . . . . . . . . . . . . . . . . . . . . . . . Parts Damaged . | . . . . . . . . . . . . . . . . . . . . . . . . . . . . . . . . . . . . . Bothacking | -11 -10 -10 -10 -9 -8 -8 -8 -7 -7 -7 -7 -6 -6 -6 -6 -6 -6 -5 -5 -5 -5 -5 -4 -4 -4 -4 -4 -3 -3 -3 -3 -2 -2 -1 -1 -1 ------------ Run | Yrd Mat Min Exi Min Mat Gar Mat Fac Low Low Dat Pro Fac Low Low Zio Dee Pro Fac Upp Upp Zhi Pro Fac Upp Upp War Pro Res Qua Frg Res Tes Acc Com Ac0 Used RIF Installer . | . . . . . . . . . . . . . . . . . . . . . . . . . . . . . . . . . . . . . Robots Hacked . | . . . . . . . . . . . . . . . . . . . . . . . . . . . . . . . . . . . . . Non-combat . | . . . . . . . . . . . . . . . . . . . . . . . . . . . . . . . . . . . . . Combat . | . . . . . . . . . . . . . . . . . . . . . . . . . . . . . . . . . . . . . Robot Hacks Applied . | . . . . . . . . . . . . . . . . . . . . . . . . . . . . . . . . . . . . . Relay Couplers Released 32 | . . . . . . 26 . 4 . . . . . . . . . . . . . . . . . . . . . . 2 . . . . . Machine Destruction 24 | . . . . . . 22 . . . . . . . . . . . . . . . . . . . . . . . . 2 . . . . . Programmers 8 | . . . . . . 4 . 4 . . . . . . . . . . . . . . . . . . . . . . . . . . . . Fabnet Peak Effective % . | . . . . . . . . . . . . . . . . . . . . . . . . . . . . . . . . . . . . . Robots Rewired 2 | . . . . . . . . . . . . . . . . . . . . 2 . . . . . . . . . . . . . . . . Allies Hacked . | . . . . . . . . . . . . . . . . . . . . . . . . . . . . . . . . . . . . . Hacks Repelled . | . . . . . . . . . . . . . . . . . . . . . . . . . . . . . . . . . . . . . Allies | -11 -10 -10 -10 -9 -8 -8 -8 -7 -7 -7 -7 -6 -6 -6 -6 -6 -6 -5 -5 -5 -5 -5 -4 -4 -4 -4 -4 -3 -3 -3 -3 -2 -2 -1 -1 -1 -------- Run | Yrd Mat Min Exi Min Mat Gar Mat Fac Low Low Dat Pro Fac Low Low Zio Dee Pro Fac Upp Upp Zhi Pro Fac Upp Upp War Pro Res Qua Frg Res Tes Acc Com Ac0 Total Allies 13 | . . 3 . 1 . 2 . . . . . 1 . . . 2 . . . 4 . . . . . . . . . . . . . . . . Largest Group 4 | . . 3 3 4 . 2 . . . . . 1 . . . 2 2 . . 4 1 . . . . . . . . . . . . . . . Highest-Rated Group 192 | . . 40 40 71 . 70 . . . . . 96 . . . 192 192 . . 114 29 . . . . . . . . . . . . . . . Highest-Rated Ally 96 | . . 16 16 31 . 39 . . . . . 96 . . . 96 96 . . 31 29 . . . . . . . . . . . . . . . Initial Warlord ECA Mod 9 | . . . . . . . 9 8 8 8 8 7 7 7 7 7 7 6 6 6 6 6 5 5 5 5 5 4 4 4 4 3 3 2 2 . Total Orders 82 | . . . . . . . . . . . . . . . . . . . . . . . . . . . . . . . . . . . . 82 STAY 11 | . . . . . . . . . . . . . . . . . . . . . . . . . . . . . . . . . . . . 11 FOLLOW 2 | . . . . . . . . . . . . . . . . . . . . . . . . . . . . . . . . . . . . 2 EXPLORE 12 | . . . . . . . . . . . . . . . . . . . . . . . . . . . . . . . . . . . . 12 RETURN 57 | . . . . . . . . . . . . . . . . . . . . . . . . . . . . . . . . . . . . 57 Ally Attacks 337 | . . 1 . 6 . 13 . . . . . 12 . . . . 48 . . 4 16 . . . . . . . . . . . . . . 237 Total Damage 13835 | . . . . 38 . 206 . . . . . 478 . . . . 1668 . . 58 210 . . . . . . . . . . . . . . 11177 Kills 34 | . . . . . . 3 . . . . . 5 . . . . 13 . . 1 2 . . . . . . . . . . . . . . 10 Allies Corrupted 2 | . . . . . . . . . . . . . . . . . . . . . . . . . . . . . . . . . . . . 2 Allies Melted 2 | . . . . . . . . . . . . . . . . . . . . . . . . . . . 1 . . . . 1 . . . . Turrets Deployed 1 | . . . . . . . . . . . . . . . . . 1 . . . . . . . . . . . . . . . . . . . Intel | -11 -10 -10 -10 -9 -8 -8 -8 -7 -7 -7 -7 -6 -6 -6 -6 -6 -6 -5 -5 -5 -5 -5 -4 -4 -4 -4 -4 -3 -3 -3 -3 -2 -2 -1 -1 -1 ------- Run | Yrd Mat Min Exi Min Mat Gar Mat Fac Low Low Dat Pro Fac Low Low Zio Dee Pro Fac Upp Upp Zhi Pro Fac Upp Upp War Pro Res Qua Frg Res Tes Acc Com Ac0 Active Infowar (turns) 33122 | 243 1222 2 . . 1018 . . 2785 235 172 21 186 426 417 293 437 204 763 1371 1558 1637 803 1108 1058 2150 1285 1742 938 1229 908 2139 1525 689 310 2329 1919 Optics 12268 | . . . . . . . . 907 . . . . 72 . . . . . . . . . . 726 2150 1285 1742 938 1229 20 . . . . 1280 1919 Sensors 16684 | . . 2 . . . . . 1677 209 172 21 75 319 417 293 437 204 528 1083 1410 1084 273 744 751 1799 1228 384 938 865 722 1049 . . . . . A.S.S. 1915 | . . . . . . . . . . . . . . . . . . . . . . . . . . . . . . . . 1522 393 . . . Zeronet 504 | . . . . . . . . . . . . . . . . . . . . . . . . . . . . . . . . . 298 206 . . Terrain 6740 | 239 165 . . . . . . . . . . . . . . . . . . . . . . 574 1802 1232 287 932 286 718 505 . . . . . Seismic 2483 | 243 1222 . . . 1018 . . . . . . . . . . . . . . . . . . . . . . . . . . . . . . . T.N.C. 854 | . . . . . . . . 165 235 172 21 186 75 . . . . . . . . . . . . . . . . . . . . . . . Cloaking 7439 | . . . . . . . . . . . . . . . . . . . 61 . . . . 22 . . 3 875 492 45 1617 1511 441 310 2062 . Jamming 13006 | . . . . . . . . 337 . . . . . . . . . 763 333 1361 1637 803 1108 1048 1969 1285 314 . 1017 164 867 . . . . . Robot Analysis Total 5 | . 1 . . . . . . . . . . . . . . . . . . . . 4 . . . . . . . . . . . . . . Derelict Logs Recovered 16 | . . 1 . . . . . . 1 1 . 1 . 1 1 2 . 2 . 2 1 . 1 . 1 1 . . . . . . . . . . Drone Launches 62 | . . . . . . . . . . . . . . . . . . . . . . . . . . . . . . . . . . . . 62 Drone Recoveries 53 | . . . . . . . . . . . . . . . . . . . . . . . . . . . . . . . . . . . . 53 Exploration | -11 -10 -10 -10 -9 -8 -8 -8 -7 -7 -7 -7 -6 -6 -6 -6 -6 -6 -5 -5 -5 -5 -5 -4 -4 -4 -4 -4 -3 -3 -3 -3 -2 -2 -1 -1 -1 ------------- Run | Yrd Mat Min Exi Min Mat Gar Mat Fac Low Low Dat Pro Fac Low Low Zio Dee Pro Fac Upp Upp Zhi Pro Fac Upp Upp War Pro Res Qua Frg Res Tes Acc Com Ac0 Turns Passed 44801 | 307 1697 977 676 157 1821 1511 937 4308 235 172 21 186 844 417 293 439 2081 763 1860 1883 1637 803 1108 1124 2150 1285 1742 938 1229 977 3167 1525 689 310 2613 1919 Spaces Moved 30825 | 95 760 523 419 70 824 752 372 2790 722 594 78 563 2056 967 743 1546 2073 510 982 738 785 140 315 471 934 619 772 384 707 563 1943 1342 446 231 1511 1485 Core 15 | 3 . . . . 6 . . . . . . . . . . . 6 . . . . . . . . . . . . . . . . . . . Treads 3970 | 92 760 523 419 70 763 752 372 219 . . . . . . . . . . . . . . . . . . . . . . . . . . . . Legs 15446 | . . . . . . . . . . . . . . . . . 568 510 982 738 785 140 315 471 934 619 772 384 707 563 1943 1342 446 231 1511 1485 Wheels 2078 | . . . . . 55 . . 2023 . . . . . . . . . . . . . . . . . . . . . . . . . . . . Hover . | . . . . . . . . . . . . . . . . . . . . . . . . . . . . . . . . . . . . . Flight 9316 | . . . . . . . . 548 722 594 78 563 2056 967 743 1546 1499 . . . . . . . . . . . . . . . . . . . Fastest Speed 20 | 50 160 160 160 160 125 162 160 26 26 26 26 26 20 25 25 25 25 128 128 186 186 186 186 130 186 186 179 179 120 115 100 100 115 115 102 102 Average Speed 107 | 156 160 160 160 160 165 164 161 119 26 26 26 26 24 25 25 25 62 128 140 186 186 186 186 185 186 186 185 179 124 127 104 105 115 115 110 102 Slowest Speed 2400 | 160 240 160 160 160 600 167 163 320 26 26 26 26 91 25 25 25 2400 128 190 188 186 186 188 186 186 186 188 179 180 166 203 120 120 115 115 102 Overloaded Moves . | . . . . . . . . . . . . . . . . . . . . . . . . . . . . . . . . . . . . . Propulsion Burnouts . | . . . . . . . . . . . . . . . . . . . . . . . . . . . . . . . . . . . . . Robots Hopped 16 | . . . . . . . . 3 . . . . 10 3 . . . . . . . . . . . . . . . . . . . . . . Potential Cave-ins 10 | . . . . . . . . . . . . . . 2 . . . . . 1 . . . . . . . . . . 3 . 2 . . 2 Cave-ins Triggered 1 | . . . . . . . . . . . . . . . . . . . . . . . . . . . . . . . . . . . . 1 Teleports 18 | . . . . . . . . . . . . . . . . . . . . . . . . . . . . . . . 16 . . . 1 1 Exploration Rate (%) 64 | 4 94 84 89 16 66 83 52 60 94 86 68 64 48 91 77 87 80 70 26 93 95 60 45 18 95 84 82 55 26 63 40 55 71 7 54 94 Regions Visited 36 Branch Regions 25 Pre-discovered Areas 19 | . 5 . . . 1 . . . 1 . 1 . . . . 2 . 1 . 1 1 3 1 . 2 . . . . . . . . . . . Known Exits Taken 24 | . . . . . 1 . 1 . . . . 1 1 1 1 1 1 1 1 1 1 1 1 1 1 1 1 1 1 1 1 1 1 . . . Unknown Exits Taken 11 | 1 1 1 1 1 . . . 1 1 1 1 . . . . . . . . . . . . . . . . . . . . . . 1 1 . Scrap Searched 40 | . . 1 . . . . . . 3 4 . 1 . 3 6 2 . 1 . 3 4 . 2 . 4 3 . 3 . . . . . . . . Spaces Dug 454 | . 3 . . 67 13 3 4 43 7 4 . . 25 13 15 . 2 6 11 13 8 . 13 10 33 11 2 14 16 10 37 9 19 2 21 20 Terrain Destroyed 2022 | . 16 2 . 83 85 30 73 416 7 4 . . 40 17 69 . 9 22 165 46 69 2 29 46 102 19 17 22 42 16 131 39 79 4 64 257 Melee 109 | . . . . . 3 3 4 4 7 4 . . 25 13 15 . 2 . . . . . . . . . . . . . 6 1 9 2 11 . Projectile 1020 | . 5 2 . 2 14 15 10 11 . . . . 3 4 . . 6 22 47 46 51 2 29 22 102 19 17 22 29 16 124 38 50 2 53 257 AOE 892 | . 11 . . 81 68 12 59 401 . . . . 12 . 54 . 1 . 118 . 18 . . 24 . . . . 13 . . . 20 . . . Terrain Rammed . | . . . . . . . . . . . . . . . . . . . . . . . . . . . . . . . . . . . . . Walls Destroyed . | . . . . . . . . . . . . . . . . . . . . . . . . . . . . . . . . . . . . . Machines Disabled . | . . . . . . . . . . . . . . . . . . . . . . . . . . . . . . . . . . . . . Actions | -11 -10 -10 -10 -9 -8 -8 -8 -7 -7 -7 -7 -6 -6 -6 -6 -6 -6 -5 -5 -5 -5 -5 -4 -4 -4 -4 -4 -3 -3 -3 -3 -2 -2 -1 -1 -1 --------- Run | Yrd Mat Min Exi Min Mat Gar Mat Fac Low Low Dat Pro Fac Low Low Zio Dee Pro Fac Upp Upp Zhi Pro Fac Upp Upp War Pro Res Qua Frg Res Tes Acc Com Ac0 Total 39769 | 186 1148 609 426 94 1109 909 595 3409 749 599 77 591 2269 1098 802 1600 2757 566 1263 1172 872 684 779 685 1211 704 957 607 986 787 2958 1444 587 266 2347 1867 Wait 4400 | 49 208 45 1 1 75 7 53 94 12 . . 21 41 107 26 40 481 23 66 342 12 524 414 90 169 42 34 206 78 102 409 12 44 25 533 14 Move 30762 | 94 759 522 418 69 823 751 371 2785 721 593 77 562 2037 961 742 1545 2072 509 981 737 784 139 314 470 933 618 771 383 706 562 1943 1341 445 230 1510 1484 Hop 11 | . . . . . . . . 1 . . . . 8 2 . . . . . . . . . . . . . . . . . . . . . . Pick Up 364 | 4 16 2 3 . 21 10 10 44 1 . . . 16 2 2 6 35 1 16 3 3 3 1 29 5 3 13 . 12 9 46 10 2 1 20 15 Fast Attach 171 | 7 1 . . . 12 2 4 24 2 1 . 1 16 . . . 20 . 10 2 1 2 . 4 1 . 14 . 4 4 21 4 4 . 6 4 Attach 137 | . . . 1 3 4 2 1 31 1 . . 1 10 . . . 6 1 3 4 1 . . 2 . . 2 . 3 5 31 3 . 2 17 3 Detach 146 | . . . 1 . 3 . 3 15 . . . 1 13 . . . 10 . 12 8 3 6 4 4 . . 11 . 3 9 25 2 2 . 7 4 Swap 607 | . 23 5 . 3 28 14 13 65 1 . . . 8 3 4 3 19 7 27 8 10 6 6 25 12 11 24 5 46 30 97 16 24 2 47 15 Drop 375 | . 7 3 2 . 33 14 18 27 1 . . . 15 1 2 6 37 . 14 6 1 4 . 31 5 2 25 . 10 9 59 11 3 . 16 13 Fire 2382 | 32 39 26 . 12 93 100 114 304 . . . . 5 6 8 . 40 25 123 53 57 . 40 30 86 28 63 13 124 56 318 43 52 2 176 314 Melee 222 | . . . . . 10 9 4 11 10 5 . 5 59 16 18 . 34 . . . . . . . . . . . . 1 7 2 11 4 15 1 Ram . | . . . . . . . . . . . . . . . . . . . . . . . . . . . . . . . . . . . . . Kick 13 | . . . . . . . . . . . . . . . . . . . 11 . . . . . . . . . . . 2 . . . . . Crush 31 | . 8 6 . 6 7 . 4 . . . . . . . . . . . . . . . . . . . . . . . . . . . . . Escape Stasis 49 | . . . . . . . . 8 . . . . 41 . . . . . . . . . . . . . . . . . . . . . . . Rewire 12 | . . . . . . . . . . . . . . . . . 3 . . 9 . . . . . . . . . . . . . . . . Trap 87 | . 87 . . . . . . . . . . . . . . . . . . . . . . . . . . . . . . . . . . . Miscellaneous . | . . . . . . . . . . . . . . . . . . . . . . . . . . . . . . . . . . . . . Route ------- -11/Scrapyard -10/Materials (discovered 6 exits: [*Mat x3] / *Min x2 / Sub) -10/Mines (discovered 3 exits: [*Mat x2] / *Exi) -10/Exiles -9/Mines -8/Materials (discovered 4 exits: *Fac x3 / Gar) -8/Garrison (discovered 3 exits: *Mat x3) -8/Materials -7/Factory (discovered 3 exits: *Fac x2 / *Low) -7/Lower Caves -7/Lower Caves -7/Data Miner -6/Proximity Caves -6/Factory (discovered 3 exits: *Fac / *Low x2) -6/Lower Caves -6/Lower Caves (discovered 2 exits: *Fac / *Zio) -6/Zion (discovered 2 exits: *Dee / [*Pro]) -6/Deep Caves -5/Proximity Caves -5/Factory (discovered 4 exits: *Fac x2 / *Upp x2) -5/Upper Caves -5/Upper Caves (discovered 2 exits: *Fac / *Zhi) -5/Zhirov -4/Proximity Caves -4/Factory (discovered 2 exits: *Upp / Arm) -4/Upper Caves -4/Upper Caves (discovered 2 exits: *Res / *War) -4/Warlord -3/Proximity Caves -3/Research -3/Quarantine (discovered 3 exits: *Res / [*Sec] / *Frg) -3/Protoforge -2/Research (discovered 3 exits: *Acc / *Tes x2) -2/Testing -1/Access -1/Command (discovered 3 exits: [Sur x2] / *Ac0) -1/Access_0 0b11 Command History --------- Turn | Location | Event 2 | -11/Scrapyard | Discovered new exit (range 16) 308 | -11/Scrapyard | Entered Materials 309 | -10/Materials | Build established: Mutant 727 | -10/Materials | Discovered new exit (range 3) 1059 | -10/Materials | Discovered new exit (range 16) 1115 | -10/Materials | Discovered new exit (range 16) 1353 | -10/Materials | Discovered new exit (range 9) 1554 | -10/Materials | Discovered new exit (range 19) 1679 | -10/Materials | Learned 4 Recycling zone layouts 1729 | -10/Materials | Identified exit to Subcaves 1796 | -10/Materials | Loaded intel: 1 trap record 1816 | -10/Materials | Learned Storage trap positions 1850 | -10/Materials | Learned 4 Subcaves zone layouts 1924 | -10/Materials | Learned location of 2 exits from Materials 2005 | -10/Materials | Entered Mines 2012 | -10/Mines | Received a Rocket Launcher from a helpful Derelict 2073 | -10/Mines | Found a damaged Exp. Sensor Array with a note attached 2076 | -10/Mines | Found Prototype Device 2076 | -10/Mines | Identified Exp. Sensor Array 2224 | -10/Mines | Assisted by bots powering up and referring to "LRC-V3" 2302 | -10/Mines | Met a Derelict who couldn't figure out how to use a Trap Extractor 2383 | -10/Mines | Discovered new exit (range 5) 2751 | -10/Mines | Found a hidden stash of uninstalled traps 2870 | -10/Mines | Learned Materials security intel 2897 | -10/Mines | Discovered new exit (range 6) 2958 | -10/Mines | Deemed a non-threat by the Exiles lab entrance 2960 | -10/Mines | Discovered new exit (range 5) 2982 | -10/Mines | Entered Exiles 2982 | -10/Exiles | Found Exiles lab abandoned 2982 | -10/Exiles | Accompanied by 3 allies 3297 | -10/Exiles | Build established: Trapper-Mutant 3639 | -10/Exiles | Discovered new exit (range 14) 3658 | -10/Exiles | Entered Mines 3658 | -9/Mines | Accompanied by 3 allies 3670 | -9/Mines | Discovered new exit (range 4) 3676 | -9/Mines | Received a Mining Laser from a helpful Derelict 3712 | -9/Mines | Assembled infested the area 3717 | -9/Mines | Assisted by a Guerilla fighting off Assembled 3757 | -9/Mines | Core integrity fell below 50% 3762 | -9/Mines | Core integrity fell below 20% 3769 | -9/Mines | Destroyed 10 combat bots 3771 | -9/Mines | Lost 5 allies 3796 | -9/Mines | Lost 4 parts (2n2u) 3815 | -9/Mines | Entered Materials 3815 | -8/Materials | Evolved 4 slots: Propulsion x2, Utility x2 3816 | -8/Materials | Identified exit to Factory 4202 | -8/Materials | Garrison activated, responded to threat 4469 | -8/Materials | Identified exit to Garrison 4591 | -8/Materials | Build established: Scavenger-Mutant 5028 | -8/Materials | Discovered exit to Factory (range 15) 5483 | -8/Materials | Central database locked down 5636 | -8/Materials | Entered Garrison 5695 | -8/Garrison | Rescued a captive Derelict 5703 | -8/Garrison | Rescued a captive Derelict 5764 | -8/Garrison | Garrison Relay disabled 5882 | -8/Garrison | Destroyed 10 combat bots 5913 | -8/Garrison | Core integrity fell below 50% 6146 | -8/Garrison | Triggered checkpoint 6152 | -8/Garrison | Discovered new exit (range 15) 6235 | -8/Garrison | Garrison Relay disabled 6268 | -8/Garrison | Triggered checkpoint 6391 | -8/Garrison | Triggered checkpoint 6428 | -8/Garrison | Triggered checkpoint 6446 | -8/Garrison | Triggered checkpoint 6508 | -8/Garrison | Discovered new exit (range 69) 6508 | -8/Garrison | Discovered new exit (range 51) 6508 | -8/Garrison | Discovered new exit (range 12) 6646 | -8/Garrison | Triggered checkpoint 6725 | -8/Garrison | Garrison Relay disabled 6748 | -8/Garrison | Garrison Relay disabled 6756 | -8/Garrison | Triggered checkpoint 6828 | -8/Garrison | Found Launcher Loader 7077 | -8/Garrison | Garrison Relay disabled 7147 | -8/Garrison | Entered Materials 7412 | -8/Materials | Garrison activated, responded to threat 7510 | -8/Materials | Build established: Mutant 7547 | -8/Materials | First assault squad dispatched 7946 | -8/Materials | Core integrity fell below 20% 8015 | -8/Materials | Discovered exit to Factory (range 11) 8084 | -8/Materials | Entered Factory 8084 | -7/Factory | Evolved 2 slots: Power x1, Utility x1 8251 | -7/Factory | Build established: Scavenger-Mutant 8322 | -7/Factory | Garrison activated, responded to threat 8484 | -7/Factory | First assault squad dispatched 8789 | -7/Factory | Garrison activated, responded to threat 9878 | -7/Factory | Allied Derelicts emerged from ambush trap array 10135 | -7/Factory | Garrison activated, responded to threat 10273 | -7/Factory | Discovered new exit (range 12) 10291 | -7/Factory | Identified exit to Factory 10487 | -7/Factory | Destroyed 7 combat bots 10652 | -7/Factory | Garrison activated, responded to threat 10909 | -7/Factory | Discovered exit to Factory (range 12) 11351 | -7/Factory | Garrison activated, responded to threat 11413 | -7/Factory | Destroyed 10 combat bots 11765 | -7/Factory | High security lockdown imminent 11813 | -7/Factory | Core integrity fell below 50% 11845 | -7/Factory | High security lockdown engaged 11851 | -7/Factory | Destroyed 8 combat bots 11962 | -7/Factory | Destroyed 10 combat bots 12028 | -7/Factory | Destroyed 10 combat bots 12224 | -7/Factory | Lost 7 parts (1p3n2u1w) 12294 | -7/Factory | Discovered new exit (range 5) 12392 | -7/Factory | Entered Lower Caves 12403 | -7/Lower Caves | Met a Warlord Commander 12404 | -7/Lower Caves | Learned location of Warlord (-4) 12405 | -7/Lower Caves | Warlord Commander delivered Encrypted Comm Array 12408 | -7/Lower Caves | Found Encrypted Comm Array 12477 | -7/Lower Caves | Build established: Sprinter 12517 | -7/Lower Caves | Encountered a Warlord checkpoint 12521 | -7/Lower Caves | Learned Factory security intel 12626 | -7/Lower Caves | Discovered new exit (range 3) 12627 | -7/Lower Caves | Entered another Lower Caves area 12630 | -7/Lower Caves | Learned Factory interactive machine intel 12712 | -7/Lower Caves | Entered a destroyed Warlord outpost 12778 | -7/Lower Caves | Found Alien Artifact 12778 | -7/Lower Caves | Identified Core Expander 12778 | -7/Lower Caves | Installed Core Expander, added new Power slot 12789 | -7/Lower Caves | Discovered new exit (range 8) 12799 | -7/Lower Caves | Entered Data Miner 12799 | -7/Data Miner | Discovered new exit (range 6) 12804 | -7/Data Miner | Met Data Miner 12811 | -7/Data Miner | Learned location of Section 7 (-3) 12811 | -7/Data Miner | Acquired the access code to Warlord's prototype stash 12813 | -7/Data Miner | Received God Mode back door access code from Data Miner 12820 | -7/Data Miner | Entered Proximity Caves 12898 | -6/Proximity Caves | Escorted by Enhanced Grunt 12957 | -6/Proximity Caves | Spotted B-75 Beast 12998 | -6/Proximity Caves | Discovered exit to Factory (range 13) 13006 | -6/Proximity Caves | Entered Factory 13006 | -6/Factory | Evolved 2 slots: Propulsion x2 13008 | -6/Factory | Loaded intel: 54 interactive machine locations 13084 | -6/Factory | Discovered new exit (range 14) 13134 | -6/Factory | Identified exit to Factory 13221 | -6/Factory | Fabricated Field Propulsion Array (x1) 13356 | -6/Factory | Search patrols dispatched 13706 | -6/Factory | Search patrols dispatched 13734 | -6/Factory | Identified exit to Lower Caves 13800 | -6/Factory | Garrison activated, responded to threat 13810 | -6/Factory | Fabricated Lgt. Fission Core (x2) 13850 | -6/Factory | Entered Lower Caves 14253 | -6/Lower Caves | Discovered new exit (range 15) 14266 | -6/Lower Caves | Identified exit to Lower Caves 14267 | -6/Lower Caves | Entered another Lower Caves area 14267 | -6/Lower Caves | Discovered exit to Factory (range 8) 14390 | -6/Lower Caves | Learned location of 1 exit from Factory 14530 | -6/Lower Caves | Destroyed 7 combat bots 14551 | -6/Lower Caves | Discovered new exit (range 13) 14558 | -6/Lower Caves | Identified exit to Zion 14560 | -6/Lower Caves | Entered Zion 14570 | -6/Zion | Discovered new exit (range 16) 14612 | -6/Zion | System corruption cleaned by Quarantine Array 14633 | -6/Zion | Given the Hacking Drone Bay 14633 | -6/Zion | Found Prototype Device 14650 | -6/Zion | Acquired unknown access codes intercepted by a Zionite 14651 | -6/Zion | Identified Hacking Drone Bay 14664 | -6/Zion | Learned location of 1 exit from Factory 14697 | -6/Zion | Given A8's code to call for help 14949 | -6/Zion | Enhanced Grunt warped into view, answering call for help 14950 | -6/Zion | Enhanced Grunt warped into view, answering call for help 14960 | -6/Zion | Opened final containment barrier to the Deep Caves 14977 | -6/Zion | Discovered new exit (range 3) 14977 | -6/Zion | Saw the warning signs outside the Deep Caves entrance 14978 | -6/Zion | Identified exit to Deep Caves 14999 | -6/Zion | Entered Deep Caves 14999 | -6/Deep Caves | Accompanied by 2 allies 15054 | -6/Deep Caves | Attacked by Z-Imprinter 15064 | -6/Deep Caves | Allies destroyed Z-Imprinter 15073 | -6/Deep Caves | Found Prototype Protection 15073 | -6/Deep Caves | Identified Zio. Weapon Casing 15081 | -6/Deep Caves | Found Prototype Device 15081 | -6/Deep Caves | Identified Zio. Metafield Generator 15257 | -6/Deep Caves | Found Prototype Protection 15257 | -6/Deep Caves | Identified Zio. Heavy Carapace 15271 | -6/Deep Caves | Found Prototype Device 15271 | -6/Deep Caves | Identified Exp. Thermal Shield 15355 | -6/Deep Caves | Spotted AG-51976 15402 | -6/Deep Caves | Destroyed AG-51976 15697 | -6/Deep Caves | Spotted AG-98626 15750 | -6/Deep Caves | Core integrity fell below 50% 15767 | -6/Deep Caves | Destroyed AG-98626 15790 | -6/Deep Caves | Lost 7 parts (2p4u1w) 15797 | -6/Deep Caves | Found Zio. Weapon Casing 15846 | -6/Deep Caves | Found Deploy-a-Sentry 15849 | -6/Deep Caves | DAS Turret deployed 15854 | -6/Deep Caves | Triggered Deep Caves wall 15854 | -6/Deep Caves | Spotted AS-51424 15854 | -6/Deep Caves | Spotted AS-62543 15868 | -6/Deep Caves | Allies destroyed AS-51424 15869 | -6/Deep Caves | Destroyed AS-62543 15880 | -6/Deep Caves | Exposed GOLEM chamber 15884 | -6/Deep Caves | Destroyed 31 combat bots 15884 | -6/Deep Caves | Found GOLEM Unit 16239 | -6/Deep Caves | Build established: Mutant 16375 | -6/Deep Caves | Found Zio. Weapon Casing 16482 | -6/Deep Caves | Found Zio. Weapon Casing 16828 | -6/Deep Caves | Build established: Golem 16979 | -6/Deep Caves | Found GOLEM Unit 16983 | -6/Deep Caves | Found GOLEM Unit 16989 | -6/Deep Caves | Found GOLEM Unit 16993 | -6/Deep Caves | Found GOLEM Unit 17070 | -6/Deep Caves | Discovered new exit (range 9) 17077 | -6/Deep Caves | Identified exit to Proximity Caves 17080 | -6/Deep Caves | Entered Proximity Caves 17212 | -5/Proximity Caves | Learned Factory emergency access door positions 17387 | -5/Proximity Caves | Build established: Mutant 17460 | -5/Proximity Caves | Learned location of Armory (-4) 17775 | -5/Proximity Caves | Discovered exit to Factory (range 16) 17843 | -5/Proximity Caves | Entered Factory 17843 | -5/Factory | Evolved 2 slots: Utility x2 17844 | -5/Factory | Identified exit to Upper Caves 17845 | -5/Factory | Identified exit to Factory 17933 | -5/Factory | Discovered exit to Factory (range 4) 18091 | -5/Factory | Found Powered Armor 18111 | -5/Factory | Build established: Scavenger-Mutant 18590 | -5/Factory | Build established: Golem 19032 | -5/Factory | Cargo convoy interrupted 19043 | -5/Factory | First assault squad dispatched 19053 | -5/Factory | System corruption reached 10% 19060 | -5/Factory | Incoming assault squad redirected 19079 | -5/Factory | Destroyed 10 combat bots 19080 | -5/Factory | Lost 3 parts (1n2u) 19245 | -5/Factory | Garrison activated, responded to threat 19279 | -5/Factory | Found Mni. Smartbomb Launcher 19703 | -5/Factory | Entered Upper Caves 20168 | -5/Upper Caves | Attracted the attention of an 0b10 outpost 20229 | -5/Upper Caves | Destroyed 7 combat bots 20449 | -5/Upper Caves | Build established: Mutant 20639 | -5/Upper Caves | Learned Factory garrison access intel 20660 | -5/Upper Caves | Entered an active Warlord outpost 20665 | -5/Upper Caves | A Commander dispatched an escort 20683 | -5/Upper Caves | Learned Armory trap positions 21436 | -5/Upper Caves | Discovered new exit (range 13) 21486 | -5/Upper Caves | Lost 3 allies 21584 | -5/Upper Caves | Identified exit to Upper Caves 21586 | -5/Upper Caves | Entered another Upper Caves area 21586 | -5/Upper Caves | Accompanied by 1 ally 21792 | -5/Upper Caves | Discovered exit to Factory (range 7) 21881 | -5/Upper Caves | Learned 4 Factory zone layouts 22273 | -5/Upper Caves | Attracted the attention of an 0b10 base 22332 | -5/Upper Caves | Learned Armory terminal intel 22332 | -5/Upper Caves | Learned Extension security intel 22332 | -5/Upper Caves | Learned 6 Proximity Caves zone layouts 22332 | -5/Upper Caves | Learned location of Extension (-4) 22921 | -5/Upper Caves | Discovered new exit (range 9) 23220 | -5/Upper Caves | Identified exit to Zhirov 23223 | -5/Upper Caves | Entered Zhirov 23223 | -5/Zhirov | Discovered new exit (range 3) 23257 | -5/Zhirov | Met Zhirov 23290 | -5/Zhirov | Learned location of Testing (-2) 23290 | -5/Zhirov | Learned location of Command (-1) 23307 | -5/Zhirov | Zhirov requested help retrieving the SGEMP Prototype 23335 | -5/Zhirov | Found Alien Artifact 23335 | -5/Zhirov | Identified Integrated Reactor 23335 | -5/Zhirov | Installed Integrated Reactor, increased core energy generation (+10) 23422 | -5/Zhirov | Found Alien Artifact 23494 | -5/Zhirov | Identified exit to Proximity Caves 23808 | -5/Zhirov | Build established: Golem 24026 | -5/Zhirov | Entered Proximity Caves 24307 | -4/Proximity Caves | Discovered exit to Factory (range 7) 24394 | -4/Proximity Caves | Attracted the attention of an 0b10 base 24597 | -4/Proximity Caves | Learned Extension garrison access intel 24597 | -4/Proximity Caves | Learned Research emergency access door positions 24597 | -4/Proximity Caves | Learned Factory trap positions 24597 | -4/Proximity Caves | Learned 6 Lower Caves zone layouts 25134 | -4/Proximity Caves | Entered Factory 25134 | -4/Factory | Evolved 2 slots: Utility x2 25135 | -4/Factory | Identified exit to Armory 25137 | -4/Factory | Loaded intel: 84 trap records 25138 | -4/Factory | Loaded intel: 4 garrison access locations 25544 | -4/Factory | Found Prototype Processor 25544 | -4/Factory | Identified Exp. Signal Interpreter 25644 | -4/Factory | Spotted B-86 Titan 25835 | -4/Factory | Build established: Skirmisher 26173 | -4/Factory | Discovered new exit (range 9) 26188 | -4/Factory | Identified exit to Upper Caves 26258 | -4/Factory | Entered Upper Caves 27373 | -4/Upper Caves | Learned Extension security intel 27373 | -4/Upper Caves | Learned Research emergency access door positions 27814 | -4/Upper Caves | Learned Research terminal intel 27814 | -4/Upper Caves | Learned Extension stockpile data 27814 | -4/Upper Caves | Learned location of 1 exit from Proximity Caves 28362 | -4/Upper Caves | Discovered new exit (range 6) 28406 | -4/Upper Caves | Identified exit to Upper Caves 28408 | -4/Upper Caves | Entered another Upper Caves area 28483 | -4/Upper Caves | Discovered new exit (range 6) 28493 | -4/Upper Caves | Identified exit to Research 28630 | -4/Upper Caves | Learned Research non-interactive machine intel 29675 | -4/Upper Caves | Discovered new exit (range 13) 29686 | -4/Upper Caves | Spotted B-86 Titan 29692 | -4/Upper Caves | Identified exit to Warlord 29693 | -4/Upper Caves | Entered Warlord 29755 | -4/Warlord | System corruption cleaned by Quarantine Array 29957 | -4/Warlord | Opened Warlord's prototype stash 29966 | -4/Warlord | Found Prototype Device 29966 | -4/Warlord | Identified Exp. Cloaking Device 29977 | -4/Warlord | Found Prototype Device 29977 | -4/Warlord | Identified Thermal Barrier 29981 | -4/Warlord | Found Prototype Processor 29981 | -4/Warlord | Identified Exp. Armor Integrity Analyzer 30267 | -4/Warlord | Build established: Golem 30362 | -4/Warlord | Met Warlord 30387 | -4/Warlord | Warlord's base attacked by MAIN.C 30554 | -4/Warlord | Found Prototype Reactor 30737 | -4/Warlord | Warlord forces counterattacked 30828 | -4/Warlord | Build established: Mutant 30883 | -4/Warlord | Lost 3 allies 30899 | -4/Warlord | Spotted Striker 30956 | -4/Warlord | Spotted Executioner 31001 | -4/Warlord | Lost 21 allies 31062 | -4/Warlord | Warlord base infiltrated, sounded retreat 31194 | -4/Warlord | Found Prototype Launcher 31219 | -4/Warlord | Spotted Executioner 31234 | -4/Warlord | Spotted Executioner 31298 | -4/Warlord | Spotted B-86 Titan 31374 | -4/Warlord | Discovered new exit (range 17) 31387 | -4/Warlord | Spotted Executioner 31387 | -4/Warlord | Spotted Striker 31425 | -4/Warlord | Identified exit to Proximity Caves 31435 | -4/Warlord | Entered Proximity Caves 31449 | -3/Proximity Caves | Lost 14 allies 31804 | -3/Proximity Caves | Build established: Skirmisher 31847 | -3/Proximity Caves | Spotter reported a threat 32258 | -3/Proximity Caves | Spotter reported a threat 32343 | -3/Proximity Caves | Received a Behemoth hack from an annoying Tinkerer 32373 | -3/Proximity Caves | Entered Research 32373 | -3/Research | Evolved 2 slots: Propulsion x1, Utility x1 32375 | -3/Research | Loaded intel: 96 non-interactive machine locations 32376 | -3/Research | Loaded intel: 25 terminal locations 32456 | -3/Research | Found Exp. Terrain Scan Processor 32582 | -3/Research | Found Fusion Bomb Launcher 32857 | -3/Research | Found Quantum Capacitor 33446 | -3/Research | Found Prototype Launcher 33446 | -3/Research | Identified Com. Tesla Bomb Launcher 33586 | -3/Research | Discovered new exit (range 15) 33601 | -3/Research | Identified exit to Quarantine 33602 | -3/Research | Entered Quarantine 33800 | -3/Quarantine | Found Alien Impact Weapon 33888 | -3/Quarantine | Found Alien Slashing Weapon 34278 | -3/Quarantine | Discovered new exit (range 7) 34288 | -3/Quarantine | Identified exit to Research 34326 | -3/Quarantine | Found Alien Artifact 34421 | -3/Quarantine | Identified Core Stripper 34446 | -3/Quarantine | Spotted Fortress 34451 | -3/Quarantine | Destroyed Fortress 34456 | -3/Quarantine | Found Prototype Reactor 34456 | -3/Quarantine | Identified Vortex Chain Reactor (x2) 34461 | -3/Quarantine | Found Prototype Device 34461 | -3/Quarantine | Identified Exp. Force Field 34482 | -3/Quarantine | Found Prototype Device 34482 | -3/Quarantine | Identified Exp. EM Shield 34492 | -3/Quarantine | Identified Sigix Broadsword 34493 | -3/Quarantine | Found Prototype Protection 34551 | -3/Quarantine | Discovered new exit (range 23) 34565 | -3/Quarantine | Discovered new exit (range 13) 34578 | -3/Quarantine | Identified exit to Protoforge 34579 | -3/Quarantine | Entered Protoforge 34696 | -3/Protoforge | Discovered exit to Research (range 22) 34869 | -3/Protoforge | Spotted Hotshot 35020 | -3/Protoforge | Spotted Hotshot 35079 | -3/Protoforge | Build established: Infiltrator-Mutant 35131 | -3/Protoforge | Found Prototype Storage 35131 | -3/Protoforge | Identified Cep. Chromion Battery 35136 | -3/Protoforge | Found Cep. Chromion Battery 35138 | -3/Protoforge | Destroyed 7 combat bots 35138 | -3/Protoforge | Found Cep. Chromion Battery 35139 | -3/Protoforge | Found Cep. Chromion Battery 35193 | -3/Protoforge | System corruption reached 10% 35283 | -3/Protoforge | Found Prototype Device 35286 | -3/Protoforge | Identified Transdimensional Reconstructor 35286 | -3/Protoforge | Identified Crosscalibrator 35305 | -3/Protoforge | Spotted Decapitator 35305 | -3/Protoforge | Spotted Decapitator 35305 | -3/Protoforge | Spotted Decapitator 35316 | -3/Protoforge | Destroyed Decapitator 35316 | -3/Protoforge | Destroyed Decapitator 35321 | -3/Protoforge | Destroyed Decapitator 35387 | -3/Protoforge | Found Cep. Network Penetrator 35430 | -3/Protoforge | Superfortress began startup sequence 35479 | -3/Protoforge | Found Cep. Lightning Penetrator 35484 | -3/Protoforge | Found Cep. Plasma Driver 35489 | -3/Protoforge | Found Prototype Ballistic Cannon 35501 | -3/Protoforge | Identified Cep. Heavy Railcannon 35508 | -3/Protoforge | Found Cep. Heavy Railcannon 35510 | -3/Protoforge | Found Cep. Helical Railcannon 35515 | -3/Protoforge | Found Cep. Miniperforator 35521 | -3/Protoforge | Found Cep. Plasma Driver 35524 | -3/Protoforge | Found Cep. Miniperforator 35541 | -3/Protoforge | Build established: Scavenger-Mutant 35640 | -3/Protoforge | Destroyed 10 combat bots 35647 | -3/Protoforge | Found Prototype Leg 35647 | -3/Protoforge | Identified Cep. Biometal Exoskeleton 35714 | -3/Protoforge | Destroyed Decapitator 35720 | -3/Protoforge | Spotted Decapitator 35721 | -3/Protoforge | Spotted Decapitator 35723 | -3/Protoforge | Destroyed Decapitator 35727 | -3/Protoforge | Destroyed Decapitator 35755 | -3/Protoforge | Spotted V710-k 35757 | -3/Protoforge | Destroyed V710-k 35798 | -3/Protoforge | Found Prototype Power Core 35798 | -3/Protoforge | Identified Cep. Zero-point Core 35810 | -3/Protoforge | Found Cep. Zero-point Core 35822 | -3/Protoforge | Found Cep. Zero-point Core 35914 | -3/Protoforge | Build established: Mutant 35958 | -3/Protoforge | Spotted V938-j 35960 | -3/Protoforge | Spotted V571-i 35966 | -3/Protoforge | Found Cep. Weapon Articulator 36014 | -3/Protoforge | Spotted Decapitator 36014 | -3/Protoforge | Spotted Decapitator 36014 | -3/Protoforge | Spotted Decapitator 36025 | -3/Protoforge | Destroyed Decapitator 36046 | -3/Protoforge | Destroyed Decapitator 36074 | -3/Protoforge | Destroyed Decapitator 36135 | -3/Protoforge | Found Prototype Device 36135 | -3/Protoforge | Identified Exp. EM Disruption Field 36140 | -3/Protoforge | Found Cep. Hardlight Director 36171 | -3/Protoforge | Spotted V448-e 36193 | -3/Protoforge | Found Exp. Force Field 36202 | -3/Protoforge | Found Prototype Device 36202 | -3/Protoforge | Identified Cep. Beam Splitter 36333 | -3/Protoforge | Spotted Immortal 36333 | -3/Protoforge | Spotted Immortal 36336 | -3/Protoforge | Spotted V354-o 36336 | -3/Protoforge | Spotted V650-t 36336 | -3/Protoforge | Spotted V807-d 36376 | -3/Protoforge | Destroyed V354-o 36380 | -3/Protoforge | Destroyed V807-d 36401 | -3/Protoforge | Found Prototype Protection 36401 | -3/Protoforge | Identified Centrium Heavy Armor Plating 36417 | -3/Protoforge | Destroyed 8 combat bots 36429 | -3/Protoforge | Found Prototype Processor 36429 | -3/Protoforge | Identified Exp. Core Analyzer 36460 | -3/Protoforge | Destroyed Immortal 36462 | -3/Protoforge | Destroyed Immortal 36486 | -3/Protoforge | Found Cep. Antigrav Storage Unit 36500 | -3/Protoforge | Spotted V027-c 36511 | -3/Protoforge | Destroyed V027-c 36519 | -3/Protoforge | Found Prototype Device 36519 | -3/Protoforge | Identified Exp. Thermal Defense Suite 36553 | -3/Protoforge | Found Prototype Storage 36553 | -3/Protoforge | Identified Cep. NT7 Matterbank 36563 | -3/Protoforge | Found Cep. Matter Streamer 36579 | -3/Protoforge | First assault squad dispatched 36653 | -3/Protoforge | Found Prototype Launcher 36653 | -3/Protoforge | Identified Cep. EMP Blanket Launcher 36657 | -3/Protoforge | Found Prototype Launcher 36657 | -3/Protoforge | Identified Cep. Rapid Grenade Launcher 36665 | -3/Protoforge | Found Cep. Tactical Fusion Warhead 36749 | -3/Protoforge | Spotted AP7-3 36768 | -3/Protoforge | Destroyed AP7-3 36773 | -3/Protoforge | Spotted AP7-3 36776 | -3/Protoforge | Destroyed AP7-3 36836 | -3/Protoforge | Found Cep. Thermoelectric Network 36838 | -3/Protoforge | Found Faulty Cep. Cloak Mesh 36840 | -3/Protoforge | Found Cep. Cloak Mesh 36845 | -3/Protoforge | Found Cep. Impact Drone Bay 36850 | -3/Protoforge | Found Faulty Cep. Thermoelectric Network 36852 | -3/Protoforge | Found Prototype Device 36852 | -3/Protoforge | Identified Cep. Dimensional Manipulator 36858 | -3/Protoforge | Found Faulty Cep. Impact Drone Bay 37014 | -3/Protoforge | Additional patrols dispatched to research labs 37018 | -3/Protoforge | Found Cep. Nanofilaments [Conductive] 37018 | -3/Protoforge | Installed Cep. Nanofilaments [Conductive], 2 resistances modified: TH -15%, EM +25% 37028 | -3/Protoforge | Found Cep. Navigation Harness 37040 | -3/Protoforge | Found Transdimensional Reconstructor 37253 | -3/Protoforge | Destroyed 9 combat bots 37386 | -3/Protoforge | Found Exp. Active Sensor Suite 37614 | -3/Protoforge | Spotted Hotshot 37656 | -3/Protoforge | Spotted Hotshot 37666 | -3/Protoforge | Destroyed Hotshot 37667 | -3/Protoforge | Destroyed Hotshot 37671 | -3/Protoforge | Destroyed Hotshot 37700 | -3/Protoforge | Destroyed Hotshot 37737 | -3/Protoforge | Spotted Hotshot 37737 | -3/Protoforge | Spotted Hotshot 37737 | -3/Protoforge | Spotted Hotshot 37743 | -3/Protoforge | Spotted Hotshot 37746 | -3/Protoforge | Entered Research 37746 | -2/Research | Warlord forces began assault on 0b10 37746 | -2/Research | Evolved 2 slots: Utility x1, Weapon x1 37771 | -2/Research | Distinguished unit "Grunt Murderers" dispatched to help 37787 | -2/Research | Identified exit to Testing 37856 | -2/Research | Research machine network offline 37860 | -2/Research | Met up with Warlord 37894 | -2/Research | Lost 6 allies 38004 | -2/Research | Spotted Striker 38010 | -2/Research | Destroyed Striker 38080 | -2/Research | Build established: Hacker-Assassin 38196 | -2/Research | Borebot progress halted 38274 | -2/Research | Discovered new exit (range 16) 38290 | -2/Research | Identified exit to Access 38385 | -2/Research | Borebot progress halted 38689 | -2/Research | Borebot progress halted 38696 | -2/Research | Found Prototype Device 38696 | -2/Research | Identified Adv. Kinecellerator 38762 | -2/Research | Found Quantum Capacitor 39265 | -2/Research | Given Cave Seal Controls access code 39271 | -2/Research | Entered Testing 39304 | -2/Testing | Lost 3 allies 39442 | -2/Testing | Unchained authorized (6S-H0T) 39587 | -2/Testing | Found Prototype Energy Gun 39587 | -2/Testing | Identified Hyp. EM Gauss Rifle 39659 | -2/Testing | Destroyed 6S-H0T 39662 | -2/Testing | Found Prototype Device 39662 | -2/Testing | Identified Zeronet Interface 39678 | -2/Testing | Found Prototype Ballistic Gun 39678 | -2/Testing | Identified 6S-H0T's Six Shooter 39689 | -2/Testing | Found 6S-H0T's SS Cartridge 39771 | -2/Testing | First assault squad dispatched 39922 | -2/Testing | Discovered exit to Access (range 15) 39941 | -2/Testing | Destroyed 8 combat bots 39954 | -2/Testing | Build established: Hacker-Mutant 39960 | -2/Testing | Entered Access 39960 | -1/Access | Evolved 2 slots: Utility x2 40001 | -1/Access | Garrison activated, responded to threat 40114 | -1/Access | Spotted B-99 Colossus 40261 | -1/Access | Discovered new exit (range 7) 40270 | -1/Access | Entered Command 40873 | -1/Command | Spotted B-99 Colossus 40897 | -1/Command | Destroyed B-99 Colossus 40988 | -1/Command | Destroyed 12 combat bots 41125 | -1/Command | Spotted B-99 Colossus 41148 | -1/Command | Disengaged cave seal 41148 | -1/Command | Derelicts emerged from the dark tunnel 41148 | -1/Command | Welcomed Warlord to Command 41165 | -1/Command | Destroyed B-99 Colossus 41192 | -1/Command | Disengaged cave seal 41192 | -1/Command | Derelicts emerged from the dark tunnel 41390 | -1/Command | Spotted Combat Programmer 41390 | -1/Command | Combat Programmer assimilated allied 6O-QO2(s) 41393 | -1/Command | Spotted M Guard 41393 | -1/Command | Spotted M Guard 41398 | -1/Command | Destroyed Combat Programmer 41401 | -1/Command | Spotted Combat Programmer 41403 | -1/Command | Destroyed Combat Programmer 41414 | -1/Command | Destroyed M Guard 41418 | -1/Command | Warlord commented on Warlord statues 41421 | -1/Command | Destroyed M Guard 41421 | -1/Command | All MAIN.C guards destroyed 41431 | -1/Command | Lost 9 allies 41438 | -1/Command | Found Corrupted Prototype Reactor 41442 | -1/Command | Found Corrupted Prototype Protection 41556 | -1/Command | Met MAIN.C 41558 | -1/Command | 0b10 Conduit disabled 41583 | -1/Command | Destroyed MAIN.C Shell 41584 | -1/Command | MAIN.C activated Command garrisons 41607 | -1/Command | Destroyed MAIN.C 41610 | -1/Command | Lost 4 allies 41627 | -1/Command | Lost 3 parts (1p1n1u) 41633 | -1/Command | Identified Zero-point Reactor 41633 | -1/Command | Identified Hvy. Regenerative Plating 41633 | -1/Command | Discovered new exit (range 33) 41633 | -1/Command | Discovered new exit (range 87) 41633 | -1/Command | Extracted map data and part IDs from MAIN.C's data core 42091 | -1/Command | Build established: Mutant 42255 | -1/Command | Found Zero-point Reactor 42260 | -1/Command | Found Exp. System Purifier 42359 | -1/Command | Found Vortex Chain Reactor 42637 | -1/Command | Attacked by Warlord forces 42818 | -1/Command | Found Exp. Core Analyzer 42877 | -1/Command | Warped through subspace to slip node 42877 | -1/Command | Discovered new exit (range 5) 42883 | -1/Command | Entered Access_0 42886 | -1/Access_0 | Met Architect 42888 | -1/Access_0 | Destroyed A8 42908 | -1/Access_0 | Architect warped through subspace 42958 | -1/Access_0 | Architect warped through subspace 42962 | -1/Access_0 | Found Exp. Thermal Shield 42993 | -1/Access_0 | Subspace Access Node disabled 43025 | -1/Access_0 | Architect warped through subspace 43054 | -1/Access_0 | A6 warped into view 43060 | -1/Access_0 | Destroyed A6 43066 | -1/Access_0 | Found Exp. Weapon Cycler 43087 | -1/Access_0 | Architect warped through subspace 43125 | -1/Access_0 | Architect warped through subspace 43157 | -1/Access_0 | Architect warped through subspace 43171 | -1/Access_0 | Subspace Access Node disabled 43183 | -1/Access_0 | Architect warped through subspace 43204 | -1/Access_0 | Architect warped through subspace 43218 | -1/Access_0 | Build established: Scavenger-Mutant 43237 | -1/Access_0 | Found Sigix Corpse 43281 | -1/Access_0 | Subspace Access Node disabled 43290 | -1/Access_0 | Architect warped through subspace 43321 | -1/Access_0 | Architect warped through subspace 43335 | -1/Access_0 | A5 warped into view 43348 | -1/Access_0 | Destroyed A5 43360 | -1/Access_0 | Architect warped through subspace 43402 | -1/Access_0 | Architect warped through subspace 43423 | -1/Access_0 | Architect warped through subspace 43494 | -1/Access_0 | Architect warped through subspace 43540 | -1/Access_0 | Found Exp. EM Shield 43551 | -1/Access_0 | Found Exp. Terrain Scan Processor 43592 | -1/Access_0 | Architect warped through subspace 43645 | -1/Access_0 | Destroyed A2 43666 | -1/Access_0 | Extracted Singularity Gate Test 138-C access codes from A2's data core 43687 | -1/Access_0 | A4 warped into view 43692 | -1/Access_0 | Destroyed A4 43724 | -1/Access_0 | Singularity Gate disabled 43735 | -1/Access_0 | Architect warped through subspace 43782 | -1/Access_0 | Architect warped through subspace 43832 | -1/Access_0 | Subspace Access Node disabled 43833 | -1/Access_0 | Crushed by falling debris 43881 | -1/Access_0 | Destroyed Architect 43886 | -1/Access_0 | Extracted unknown sensor trigger ID from Architect's data core 43898 | -1/Access_0 | Found Hpw. Transdimensional Reconstructor 44454 | -1/Access_0 | A3 warped into view 44455 | -1/Access_0 | Destroyed A3 44681 | -1/Access_0 | Found Integrated Mediator 44682 | -1/Access_0 | Installed Integrated Mediator, increased core attachment efficiency 44793 | -1/Access_0 | Found Hpw. Transdimensional Reconstructor 44794 | -1/Access_0 | Warped through subspace to slip node 44794 | -1/Access_0 | Discovered new exit (range 8) 44802 | *** | Establishing 0b11! Last Messages --------------- 44455_ Lgt. Particle Reactor melted. 44455_ Cld. Antigrav System melted. 44455_ A3: "How even..." 44538_ KNBSWPNBMNCH O&IIOAR Y/MSAO9AJP MQ,V 44593_ System corrupted: FCS attempts to trigger Cep. Plasma Driver. 44593_ System corrupted: Cep. Plasma Driver misfires. 44593_ Plasma Slug penetrates Wall. 44619_ System corrupted: Component data lost. 44668_ System corrupted: IFF burst signal emitted. 44681_ Acquired Integrated Mediator. 44682_ Integrated Mediator installed, core attachment efficiency improved. 44690_ >DTP,T1JSN29URFHPXPHBQNI&T/<:ASDFC